Workbook

Sheet Hood Inlet
A1: Project Name: | K1: IaHoodInlet.xls Ver 1.30
A2: Computed by: | F2: Outflow, CFS | I2: =IF(X17=0,"","Void - Press Compute") -> 
A3: Date: | F3: Weir | G3: Slug Flow | H3: Full Pipe | I3: Structure Outflow, CFS
A4: Checked by: | E4: HW | F4: cfs | G4: cfs | H4: cfs | I4: cfs | K4: Controlling
A5: Date: | D5: Elev | E5: Ft | F5: Weir | G5: Inlet Orfice | H5: Full Pipe | I5: Struct | K5: Factor | R5: Full Pipe Flow
A6: Input Data | D6: =IF(pcrest="","",ROUND(pcrest,1)) -> 1083.5 | E6: =IF(D6="","",D6-crest) -> 0 | F6: =IF(E6="","",'Weir & Slug'!E7) -> 0 | G6: =IF(E6="","",'Weir & Slug'!F7) -> 0 | H6: =IF(E6="","",IF(D6-TailW<0,0,Barea*((64.4*(D6-TailW))/(1+Entrance_Coeff+km+Kp*Pipe_Len))^0.5)) -> 38.30070205 | I6: =IF(E6="","",IF(E6>1.8*Pipe_Diam/12,H6,IF(H6=0,MAX(F6,G6),MIN(MAX(F6,G6),H6)))) -> 0 | K6: =IF(E6="","",IF(I6=F6,"Weir Flow",IF(I6=H6,"Full Pipe Flow","Slug Flow"))) -> Weir Flow
D7: =IF(D6="","",IF(D6>=high_water,"",IF(K6="Full Pipe Flow",(INT((D6)/change_inc)+1)*change_inc,D6+NonFPincr))) -> 1083.6 | E7: =IF(D7="","",D7-crest) -> 0.1 | F7: =IF(E7="","",'Weir & Slug'!E8) -> 0.03921829657 | G7: =IF(E7="","",'Weir & Slug'!F8) -> 0 | H7: =IF(E7="","",IF(D7-TailW<0,0,Barea*((64.4*(D7-TailW))/(1+Entrance_Coeff+km+Kp*Pipe_Len))^0.5)) -> 38.40694553 | I7: 0.03921829657 | K7: =IF(E7="","",IF(I7=F7,"Weir Flow",IF(I7=H7,"Full Pipe Flow","Slug Flow"))) -> Weir Flow | R7: =IF(D7="","",IF(H7=I7,H7,"")) -> 
D8: 1083.7 | E8: =IF(D8="","",D8-crest) -> 0.2 | F8: =IF(E8="","",'Weir & Slug'!E9) -> 0.1572098271 | G8: =IF(E8="","",'Weir & Slug'!F9) -> 0 | H8: 38.51289593 | I8: 0.1572098271 | K8: Weir Flow | X8: Max Full Pipe Flow | Y8: =MAX(H6:H205) -> 45.58695374
D9: 1083.8 | E9: 0.3 | F9: =IF(E9="","",'Weir & Slug'!E10) -> 0.3541671664 | G9: =IF(E9="","",'Weir & Slug'!F10) -> 0 | H9: 38.61855565 | I9: 0.3541671664 | K9: Weir Flow | X9: Max Y for Chart | Y9: =5*INT(1+(1.25*Y8/5)) -> 60
A10: Principal Spillway Crest Elev (ft) | C10: 1083.5 | D10: 1083.9 | E10: 0.4 | F10: =IF(E10="","",'Weir & Slug'!E11) -> 0.6298421005 | G10: =IF(E10="","",'Weir & Slug'!F11) -> 0 | H10: 38.72392707 | I10: 0.6298421005 | K10: Weir Flow
D11: 1084 | E11: 0.5 | F11: =IF(E11="","",'Weir & Slug'!E12) -> 0.9835110319 | G11: =IF(E11="","",'Weir & Slug'!F12) -> 0 | H11: 38.82901255 | I11: 0.9835110319 | K11: Weir Flow
D12: 1084.1 | E12: 0.6 | F12: =IF(E12="","",'Weir & Slug'!E13) -> 1.413934154 | G12: =IF(E12="","",'Weir & Slug'!F13) -> 0 | H12: 38.93381439 | I12: 1.413934154 | K12: Weir Flow
A13: Pipe Diameter (in) | C13: 24 | D13: 1084.2 | E13: 0.7 | F13: =IF(E13="","",'Weir & Slug'!E14) -> 1.919306667 | G13: =IF(E13="","",'Weir & Slug'!F14) -> 0 | H13: 39.03833489 | I13: 1.919306667 | K13: Weir Flow | V13: Full Pipe increment1= | W13: =IF(change_inc1="",NonFPincr,change_inc1) -> 0.2
A14: Pipe Length (ft) | C14: 125 | D14: 1084.3 | E14: 0.8 | F14: =IF(E14="","",'Weir & Slug'!E15) -> 2.497199656 | G14: =IF(E14="","",'Weir & Slug'!F15) -> 0 | H14: 39.14257629 | I14: 2.497199656 | K14: Weir Flow | V14: Non Full Pipe Increment= | W14: 0.1
A15: Entrance Coefficient 'Ke' | C15: 1 | D15: 1084.4 | E15: 0.9 | F15: =IF(E15="","",'Weir & Slug'!E16) -> 3.144487242 | G15: =IF(E15="","",'Weir & Slug'!F16) -> 0 | H15: 39.24654082 | I15: 3.144487242 | K15: Weir Flow
A16: Mannings 'n-value' | C16: 0.025 | D16: 1084.5 | E16: 1 | F16: =IF(E16="","",'Weir & Slug'!E17) -> 3.857255106 | G16: =IF(E16="","",'Weir & Slug'!F17) -> 0 | H16: 39.35023067 | I16: 3.857255106 | K16: Weir Flow
A17: Elbow Elev (if None, Leave 'BLANK') | C17: 1065.5 | D17: 1084.6 | E17: 1.1 | F17: =IF(E17="","",'Weir & Slug'!E18) -> 4.630682995 | G17: =IF(E17="","",'Weir & Slug'!F18) -> 0 | H17: 39.45364801 | I17: 4.630682995 | K17: Weir Flow
A18: Length of Outlet ('BLANK' if none) | C18: 20 | D18: 1084.7 | E18: 1.2 | F18: =IF(E18="","",'Weir & Slug'!E19) -> 5.458889689 | G18: =IF(E18="","",'Weir & Slug'!F19) -> 0 | H18: 39.55679498 | I18: 5.458889689 | K18: Weir Flow | V18: Outlet Type
A19: Outlet Type | B19: Cantilever | D19: 1084.8 | E19: 1.3 | F19: =IF(E19="","",'Weir & Slug'!E20) -> 6.334721641 | G19: =IF(E19="","",'Weir & Slug'!F20) -> 0 | H19: 39.65967368 | I19: 6.334721641 | K19: Weir Flow | V19: 1 | W19: Cantilever
A20: Outlet Elevation (ft) | C20: 1064.5 | D20: 1084.9 | E20: 1.4 | F20: =IF(E20="","",'Weir & Slug'!E21) -> 7.249452841 | G20: =IF(E20="","",'Weir & Slug'!F21) -> 0 | H20: 39.76228621 | I20: 7.249452841 | K20: Weir Flow | V20: 2 | W20: Slotted Flume
A21: Tailwater Elev (if unknown, leave 'Blank') | D21: 1085 | E21: 1.5 | F21: =IF(E21="","",'Weir & Slug'!E22) -> 8.192335887 | G21: =IF(E21="","",'Weir & Slug'!F22) -> 0 | H21: 39.8646346 | I21: 8.192335887 | K21: Weir Flow
A22: Auxiliary Spillway Elev (ft) | C22: 1089 | D22: 1085.1 | E22: 1.6 | F22: =IF(E22="","",'Weir & Slug'!E23) -> 9.149882664 | G22: =IF(E22="","",'Weir & Slug'!F23) -> 0 | H22: 39.9667209 | I22: 9.149882664 | K22: Weir Flow | V22: Wall Smoothness
A23: Maximum Headwater Elev (ft) | C23: 1091 | D23: 1085.2 | E23: 1.7 | F23: =IF(E23="","",'Weir & Slug'!E24) -> 10.10459586 | G23: =IF(E23="","",'Weir & Slug'!F24) -> 0 | H23: 40.06854711 | I23: 10.10459586 | K23: Weir Flow | V23: 1 | W23: Smooth
A24: Elev Increment After Full Pipe Flow | C24: 0.2 | D24: 1085.3 | E24: 1.8 | F24: =IF(E24="","",'Weir & Slug'!E25) -> 11.03238442 | G24: =IF(E24="","",'Weir & Slug'!F25) -> 0 | H24: 40.1701152 | I24: 11.03238442 | K24: Weir Flow | V24: 2 | W24: Corrugated
D25: 1085.4 | E25: 1.9 | F25: =IF(E25="","",'Weir & Slug'!E26) -> 11.89579136 | G25: =IF(E25="","",'Weir & Slug'!F26) -> 0 | H25: 40.27142712 | I25: 11.89579136 | K25: Weir Flow
A26: Basic Output | D26: 1085.5 | E26: 2 | F26: =IF(E26="","",'Weir & Slug'!E27) -> 12.60702124 | G26: =IF(E26="","",'Weir & Slug'!F27) -> 0 | H26: 40.37248482 | I26: 12.60702124 | K26: Weir Flow
B27: Full Pipe Flow - Max. Outflow (cfs): | C27: =MAX(R7:R205) -> 45.58695374 | D27: 1085.6 | E27: 2.1 | F27: =IF(E27="","",'Weir & Slug'!E28) -> 13.09224912 | G27: =IF(E27="","",'Weir & Slug'!F28) -> 0 | H27: 40.47329018 | I27: 13.09224912 | K27: Weir Flow
B28: Full Pipe Flow - Max. Velocity (fps): | C28: =MAX(R7:R205)/Barea -> 14.51077806 | D28: 1085.7 | E28: 2.2 | F28: =IF(E28="","",'Weir & Slug'!E29) -> 13.57833296 | G28: =IF(E28="","",'Weir & Slug'!F29) -> 0 | H28: 40.57384509 | I28: 13.57833296 | K28: Weir Flow
D29: 1085.8 | E29: 2.3 | F29: =IF(E29="","",'Weir & Slug'!E30) -> 14.06549115 | G29: =IF(E29="","",'Weir & Slug'!F30) -> 0 | H29: 40.67415141 | I29: 14.06549115 | K29: Weir Flow
D30: 1085.9 | E30: 2.4 | F30: =IF(E30="","",'Weir & Slug'!E31) -> 14.55391264 | G30: =IF(E30="","",'Weir & Slug'!F31) -> 0 | H30: 40.77421098 | I30: 14.55391264 | K30: Weir Flow
B31: Barrel Area (Sq Ft): | C31: =(Pipe_Diam/24)^2* PI() -> 3.141592654 | D31: 1086 | E31: 2.5 | F31: =IF(E31="","",'Weir & Slug'!E32) -> 15.04376155 | G31: =IF(E31="","",'Weir & Slug'!F32) -> 0 | H31: 40.8740256 | I31: 15.04376155 | K31: Weir Flow
B32: Kp: | C32: =5087*Mannings^2/Pipe_Diam^(4/3) -> 0.04592615628 | D32: 1086.1 | E32: 2.6 | F32: =IF(E32="","",'Weir & Slug'!E33) -> 15.53518092 | G32: =IF(E32="","",'Weir & Slug'!F33) -> 0 | H32: 40.97359706 | I32: 15.53518092 | K32: Weir Flow
B33: Friction Slope (HW at the A.S. Crest): | C33: =((emerg-(outlet+0.6*Pipe_Diam/12))*Kp)/(Kp*Pipe_Len+Entrance_Coeff+1) -> 0.1382394136 | D33: 1086.2 | E33: 2.7 | F33: =IF(E33="","",'Weir & Slug'!E34) -> 16.02829584 | G33: =IF(E33="","",'Weir & Slug'!F34) -> 0 | H33: 41.07292714 | I33: 16.02829584 | K33: Weir Flow | S33: VOID: Principal Spillway inlet may not be lower than the barrel invert elevation.
B34: Pipe Slope: | C34: =IF(OR(elbow="",len_outlet=""),TAN(ASIN((crest-outlet)/Pipe_Len)),TAN(ASIN((crest-elbow)/(Pipe_Len-len_outlet)))) -> 0.1740044372 | D34: 1086.3 | E34: 2.8 | F34: =IF(E34="","",'Weir & Slug'!E35) -> 16.52321595 | G34: =IF(E34="","",'Weir & Slug'!F35) -> 0 | H34: 41.17201758 | I34: 16.52321595 | K34: Weir Flow | S34: Warning: Principal Spillway outlet is higher than the pipe inlet elevation.
B35: Outlet Elbow Angle (deg): | C35: =IF(OR(elbow="",len_outlet=""),0,ROUND((180/PI())*(ATAN(PipeSlope)-ASIN((elbow-outlet)/len_outlet)),0)) -> 7 | D35: 1086.4 | E35: 2.9 | F35: =IF(E35="","",'Weir & Slug'!E36) -> 17.0200376 | G35: =IF(E35="","",'Weir & Slug'!F36) -> 0 | H35: 41.2708701 | I35: 17.0200376 | K35: Weir Flow
D36: 1086.5 | E36: 3 | F36: =IF(E36="","",'Weir & Slug'!E37) -> 17.51884558 | G36: =IF(E36="","",'Weir & Slug'!F37) -> 0 | H36: 41.36948642 | I36: 17.51884558 | K36: Weir Flow | S36: Warning: Please check the elevation of the elbow.
D37: 1086.6 | E37: 3.1 | F37: =IF(E37="","",'Weir & Slug'!E38) -> 18.0197147 | G37: =IF(E37="","",'Weir & Slug'!F38) -> 0 | H37: 41.46786822 | I37: 18.0197147 | K37: Weir Flow
B38: Km: | C38: =IF(ElAngle>30,30*Mannings/3,ABS(ElAngle*Mannings/3)) -> 0.05833333333 | D38: 1086.7 | E38: 3.2 | F38: =IF(E38="","",'Weir & Slug'!E39) -> 18.52271097 | G38: =IF(E38="","",'Weir & Slug'!F39) -> 9.050966799 | H38: 41.56601715 | I38: =IF(E38="","",IF(E38>1.8*Pipe_Diam/12,H38,IF(H38=0,MAX(F38,G38),MIN(MAX(F38,G38),H38)))) -> 18.52271097 | K38: Weir Flow
B39: Tailwater Elev Used For Full Pipe Flow: | C39: =MAX(TWentered,IF(OutType="Slotted Flume", outlet,Pipe_Diam/12*0.5+outlet)) -> 1065.5 | D39: =IF(D38="","",IF(D38>=high_water,"",IF(K38="Full Pipe Flow",(INT((D38)/change_inc)+1)*change_inc,D38+NonFPincr))) -> 1086.8 | E39: 3.3 | F39: =IF(E39="","",'Weir & Slug'!E40) -> 19.02789273 | G39: =IF(E39="","",'Weir & Slug'!F40) -> 20.3646753 | H39: 41.66393488 | I39: 20.3646753 | K39: Slug Flow | R39: =IF(D39="","",IF(H39=I39,H39,"")) -> 
D40: 1086.9 | E40: 3.4 | F40: =IF(E40="","",'Weir & Slug'!E41) -> 19.53531158 | G40: =IF(E40="","",'Weir & Slug'!F41) -> 31.6783838 | H40: 41.76162302 | I40: 31.6783838 | K40: Slug Flow | S40: NOTE: The pipe slope is flatter than the outlet slope. Eliminate or lower the elbow.
A41: Notes & Warnings | D41: 1087 | E41: 3.5 | F41: =IF(E41="","",'Weir & Slug'!E42) -> 20.04501314 | G41: =IF(E41="","",'Weir & Slug'!F42) -> 42.9920923 | H41: 41.85908318 | I41: 41.85908318 | K41: Full Pipe Flow | R41: 41.85908318 | S41: VOID: The elevation difference between the elbow & outlet cannot be greater than the outlet length
A42: =IF(OR(len_outlet="",elbow=""),"",IF((elbow-outlet)/len_outlet>1,S41,"")) ->  | D42: 1087 | E42: 3.5 | F42: =IF(E42="","",'Weir & Slug'!E43) -> 20.04501314 | G42: =IF(E42="","",'Weir & Slug'!F43) -> 42.9920923 | H42: 41.85908318 | I42: 41.85908318 | K42: Full Pipe Flow | R42: 41.85908318
D43: 1087.2 | E43: 3.7 | F43: =IF(E43="","",'Weir & Slug'!E44) ->  | G43: =IF(E43="","",'Weir & Slug'!F44) ->  | H43: 42.05332591 | I43: 42.05332591 | K43: Full Pipe Flow | R43: 42.05332591 | S43: Warning: Please enter a Mannings N value (positive number)
D44: 1087.4 | E44: 3.9 | F44: =IF(E44="","",'Weir & Slug'!E45) ->  | G44: =IF(E44="","",'Weir & Slug'!F45) ->  | H44: 42.24667556 | I44: 42.24667556 | K44: Full Pipe Flow | R44: 42.24667556
A45: =IF(Mannings<=0,S43,"") ->  | D45: 1087.6 | E45: 4.1 | F45: =IF(E45="","",'Weir & Slug'!E46) ->  | G45: =IF(E45="","",'Weir & Slug'!F46) ->  | H45: 42.43914432 | I45: 42.43914432 | K45: Full Pipe Flow | R45: 42.43914432 | S45: Note: Verify that the pipe inside wall type is correct.
D46: 1087.8 | E46: 4.3 | F46: =IF(E46="","",'Weir & Slug'!E47) ->  | G46: =IF(E46="","",'Weir & Slug'!F47) ->  | H46: 42.63074414 | I46: 42.63074414 | K46: Full Pipe Flow | R46: 42.63074414 | S46: VOID: The tailwater elevation is higher than the inlet elevation.
D47: 1088 | E47: 4.5 | F47: =IF(E47="","",'Weir & Slug'!E48) ->  | G47: =IF(E47="","",'Weir & Slug'!F48) ->  | H47: 42.82148668 | I47: 42.82148668 | K47: Full Pipe Flow | R47: 42.82148668
D48: 1088.2 | E48: 4.7 | F48: =IF(E48="","",'Weir & Slug'!E49) ->  | G48: =IF(E48="","",'Weir & Slug'!F49) ->  | H48: 43.01138334 | I48: 43.01138334 | K48: Full Pipe Flow | R48: 43.01138334
A49: =IF(outlet>crest,S34,IF(elbow<>"",IF(OR(elbow<outlet,elbow-outlet>len_outlet),S36,""),"")) ->  | D49: 1088.4 | E49: 4.9 | F49: =IF(E49="","",'Weir & Slug'!E50) ->  | G49: =IF(E49="","",'Weir & Slug'!F50) ->  | H49: 43.20044528 | I49: 43.20044528 | K49: Full Pipe Flow | R49: 43.20044528
D50: 1088.6 | E50: 5.1 | F50: =IF(E50="","",'Weir & Slug'!E51) ->  | G50: =IF(E50="","",'Weir & Slug'!F51) ->  | H50: 43.3886834 | I50: 43.3886834 | K50: Full Pipe Flow | R50: 43.3886834
D51: 1088.8 | E51: 5.3 | F51: =IF(E51="","",'Weir & Slug'!E52) ->  | G51: =IF(E51="","",'Weir & Slug'!F52) ->  | H51: 43.57610839 | I51: 43.57610839 | K51: Full Pipe Flow | R51: 43.57610839
A52: =IF(OR(len_outlet="",elbow=""),"",IF(ElAngle<0,S40,"")) ->  | D52: 1089 | E52: 5.5 | F52: =IF(E52="","",'Weir & Slug'!E53) ->  | G52: =IF(E52="","",'Weir & Slug'!F53) ->  | H52: 43.7627307 | I52: 43.7627307 | K52: Full Pipe Flow | R52: 43.7627307
D53: 1089.2 | E53: 5.7 | F53: =IF(E53="","",'Weir & Slug'!E54) ->  | G53: =IF(E53="","",'Weir & Slug'!F54) ->  | H53: 43.94856054 | I53: 43.94856054 | K53: Full Pipe Flow | R53: 43.94856054
D54: 1089.4 | E54: 5.9 | F54: =IF(E54="","",'Weir & Slug'!E55) ->  | G54: =IF(E54="","",'Weir & Slug'!F55) ->  | H54: 44.13360793 | I54: 44.13360793 | K54: Full Pipe Flow | R54: 44.13360793
A55: =IF(TWentered="","",IF(TWentered>crest,S46,"")) ->  | D55: 1089.6 | E55: 6.1 | F55: =IF(E55="","",'Weir & Slug'!E56) ->  | G55: =IF(E55="","",'Weir & Slug'!F56) ->  | H55: 44.31788267 | I55: 44.31788267 | K55: Full Pipe Flow | R55: 44.31788267
D56: 1089.8 | E56: 6.3 | F56: =IF(E56="","",'Weir & Slug'!E57) ->  | G56: =IF(E56="","",'Weir & Slug'!F57) ->  | H56: 44.50139435 | I56: 44.50139435 | K56: Full Pipe Flow | R56: 44.50139435
D57: 1090 | E57: 6.5 | F57: =IF(E57="","",'Weir & Slug'!E58) ->  | G57: =IF(E57="","",'Weir & Slug'!F58) ->  | H57: 44.68415239 | I57: 44.68415239 | K57: Full Pipe Flow | R57: 44.68415239
D58: 1090.2 | E58: 6.7 | F58: =IF(E58="","",'Weir & Slug'!E59) ->  | G58: =IF(E58="","",'Weir & Slug'!F59) ->  | H58: 44.86616598 | I58: 44.86616598 | K58: Full Pipe Flow | R58: 44.86616598
D59: 1090.4 | E59: 6.9 | F59: =IF(E59="","",'Weir & Slug'!E60) ->  | G59: =IF(E59="","",'Weir & Slug'!F60) ->  | H59: 45.04744416 | I59: 45.04744416 | K59: Full Pipe Flow | R59: 45.04744416
D60: 1090.6 | E60: 7.1 | F60: =IF(E60="","",'Weir & Slug'!E61) ->  | G60: =IF(E60="","",'Weir & Slug'!F61) ->  | H60: 45.22799576 | I60: 45.22799576 | K60: Full Pipe Flow | R60: 45.22799576
D61: 1090.8 | E61: 7.3 | F61: =IF(E61="","",'Weir & Slug'!E62) ->  | G61: =IF(E61="","",'Weir & Slug'!F62) ->  | H61: 45.40782946 | I61: 45.40782946 | K61: Full Pipe Flow | R61: 45.40782946
D62: 1091 | E62: 7.5 | F62: =IF(E62="","",'Weir & Slug'!E63) ->  | G62: =IF(E62="","",'Weir & Slug'!F63) ->  | H62: 45.58695374 | I62: 45.58695374 | K62: Full Pipe Flow | R62: 45.58695374
F63: =IF(E63="","",'Weir & Slug'!E64) ->  | G63: =IF(E63="","",'Weir & Slug'!F64) -> 
F64: =IF(E64="","",'Weir & Slug'!E65) ->  | G64: =IF(E64="","",'Weir & Slug'!F65) -> 
F65: =IF(E65="","",'Weir & Slug'!E66) ->  | G65: =IF(E65="","",'Weir & Slug'!F66) -> 
F66: =IF(E66="","",'Weir & Slug'!E67) ->  | G66: =IF(E66="","",'Weir & Slug'!F67) -> 
F67: =IF(E67="","",'Weir & Slug'!E68) ->  | G67: =IF(E67="","",'Weir & Slug'!F68) -> 
F68: =IF(E68="","",'Weir & Slug'!E69) ->  | G68: =IF(E68="","",'Weir & Slug'!F69) -> 
F69: =IF(E69="","",'Weir & Slug'!E70) ->  | G69: =IF(E69="","",'Weir & Slug'!F70) -> 
F70: =IF(E70="","",'Weir & Slug'!E71) ->  | G70: =IF(E70="","",'Weir & Slug'!F71) ->  | I70: =IF(E70="","",IF(E70>1.8*Pipe_Diam/12,H70,IF(H70=0,MAX(F70,G70),MIN(MAX(F70,G70),H70)))) -> 
D71: =IF(D70="","",IF(D70>=high_water,"",IF(K70="Full Pipe Flow",(INT((D70)/change_inc)+1)*change_inc,D70+NonFPincr))) ->  | F71: =IF(E71="","",'Weir & Slug'!E72) ->  | G71: =IF(E71="","",'Weir & Slug'!F72) ->  | H71: =IF(E71="","",IF(D71-TailW<0,0,Barea*((64.4*(D71-TailW))/(1+Entrance_Coeff+km+Kp*Pipe_Len))^0.5)) ->  | K71: =IF(E71="","",IF(I71=F71,"Weir Flow",IF(I71=H71,"Full Pipe Flow","Slug Flow"))) ->  | R71: =IF(D71="","",IF(H71=I71,H71,"")) -> 
E72: =IF(D72="","",D72-crest) ->  | F72: =IF(E72="","",'Weir & Slug'!E73) ->  | G72: =IF(E72="","",'Weir & Slug'!F73) -> 
F73: =IF(E73="","",'Weir & Slug'!E74) ->  | G73: =IF(E73="","",'Weir & Slug'!F74) -> 
F74: =IF(E74="","",'Weir & Slug'!E75) ->  | G74: =IF(E74="","",'Weir & Slug'!F75) -> 
F75: =IF(E75="","",'Weir & Slug'!E76) ->  | G75: =IF(E75="","",'Weir & Slug'!F76) -> 
F76: =IF(E76="","",'Weir & Slug'!E77) ->  | G76: =IF(E76="","",'Weir & Slug'!F77) -> 
F77: =IF(E77="","",'Weir & Slug'!E78) ->  | G77: =IF(E77="","",'Weir & Slug'!F78) -> 
F78: =IF(E78="","",'Weir & Slug'!E79) ->  | G78: =IF(E78="","",'Weir & Slug'!F79) -> 
F79: =IF(E79="","",'Weir & Slug'!E80) ->  | G79: =IF(E79="","",'Weir & Slug'!F80) -> 
F80: =IF(E80="","",'Weir & Slug'!E81) ->  | G80: =IF(E80="","",'Weir & Slug'!F81) -> 
F81: =IF(E81="","",'Weir & Slug'!E82) ->  | G81: =IF(E81="","",'Weir & Slug'!F82) -> 
F82: =IF(E82="","",'Weir & Slug'!E83) ->  | G82: =IF(E82="","",'Weir & Slug'!F83) -> 
F83: =IF(E83="","",'Weir & Slug'!E84) ->  | G83: =IF(E83="","",'Weir & Slug'!F84) -> 
F84: =IF(E84="","",'Weir & Slug'!E85) ->  | G84: =IF(E84="","",'Weir & Slug'!F85) -> 
F85: =IF(E85="","",'Weir & Slug'!E86) ->  | G85: =IF(E85="","",'Weir & Slug'!F86) -> 
F86: =IF(E86="","",'Weir & Slug'!E87) ->  | G86: =IF(E86="","",'Weir & Slug'!F87) -> 
F87: =IF(E87="","",'Weir & Slug'!E88) ->  | G87: =IF(E87="","",'Weir & Slug'!F88) -> 
F88: =IF(E88="","",'Weir & Slug'!E89) ->  | G88: =IF(E88="","",'Weir & Slug'!F89) -> 
F89: =IF(E89="","",'Weir & Slug'!E90) ->  | G89: =IF(E89="","",'Weir & Slug'!F90) -> 
F90: =IF(E90="","",'Weir & Slug'!E91) ->  | G90: =IF(E90="","",'Weir & Slug'!F91) -> 
F91: =IF(E91="","",'Weir & Slug'!E92) ->  | G91: =IF(E91="","",'Weir & Slug'!F92) -> 
F92: =IF(E92="","",'Weir & Slug'!E93) ->  | G92: =IF(E92="","",'Weir & Slug'!F93) -> 
F93: =IF(E93="","",'Weir & Slug'!E94) ->  | G93: =IF(E93="","",'Weir & Slug'!F94) -> 
F94: =IF(E94="","",'Weir & Slug'!E95) ->  | G94: =IF(E94="","",'Weir & Slug'!F95) -> 
F95: =IF(E95="","",'Weir & Slug'!E96) ->  | G95: =IF(E95="","",'Weir & Slug'!F96) -> 
F96: =IF(E96="","",'Weir & Slug'!E97) ->  | G96: =IF(E96="","",'Weir & Slug'!F97) -> 
F97: =IF(E97="","",'Weir & Slug'!E98) ->  | G97: =IF(E97="","",'Weir & Slug'!F98) -> 
F98: =IF(E98="","",'Weir & Slug'!E99) ->  | G98: =IF(E98="","",'Weir & Slug'!F99) -> 
F99: =IF(E99="","",'Weir & Slug'!E100) ->  | G99: =IF(E99="","",'Weir & Slug'!F100) -> 
F100: =IF(E100="","",'Weir & Slug'!E101) ->  | G100: =IF(E100="","",'Weir & Slug'!F101) -> 
F101: =IF(E101="","",'Weir & Slug'!E102) ->  | G101: =IF(E101="","",'Weir & Slug'!F102) -> 
F102: =IF(E102="","",'Weir & Slug'!E103) ->  | G102: =IF(E102="","",'Weir & Slug'!F103) ->  | I102: =IF(E102="","",IF(E102>1.8*Pipe_Diam/12,H102,IF(H102=0,MAX(F102,G102),MIN(MAX(F102,G102),H102)))) -> 
D103: =IF(D102="","",IF(D102>=high_water,"",IF(K102="Full Pipe Flow",(INT((D102)/change_inc)+1)*change_inc,D102+NonFPincr))) ->  | F103: =IF(E103="","",'Weir & Slug'!E104) ->  | G103: =IF(E103="","",'Weir & Slug'!F104) ->  | R103: =IF(D103="","",IF(H103=I103,H103,"")) -> 
F104: =IF(E104="","",'Weir & Slug'!E105) ->  | G104: =IF(E104="","",'Weir & Slug'!F105) -> 
F105: =IF(E105="","",'Weir & Slug'!E106) ->  | G105: =IF(E105="","",'Weir & Slug'!F106) -> 
F106: =IF(E106="","",'Weir & Slug'!E107) ->  | G106: =IF(E106="","",'Weir & Slug'!F107) -> 
F107: =IF(E107="","",'Weir & Slug'!E108) ->  | G107: =IF(E107="","",'Weir & Slug'!F108) -> 
F108: =IF(E108="","",'Weir & Slug'!E109) ->  | G108: =IF(E108="","",'Weir & Slug'!F109) -> 
F109: =IF(E109="","",'Weir & Slug'!E110) ->  | G109: =IF(E109="","",'Weir & Slug'!F110) -> 
F110: =IF(E110="","",'Weir & Slug'!E111) ->  | G110: =IF(E110="","",'Weir & Slug'!F111) -> 
F111: =IF(E111="","",'Weir & Slug'!E112) ->  | G111: =IF(E111="","",'Weir & Slug'!F112) -> 
F112: =IF(E112="","",'Weir & Slug'!E113) ->  | G112: =IF(E112="","",'Weir & Slug'!F113) -> 
F113: =IF(E113="","",'Weir & Slug'!E114) ->  | G113: =IF(E113="","",'Weir & Slug'!F114) -> 
F114: =IF(E114="","",'Weir & Slug'!E115) ->  | G114: =IF(E114="","",'Weir & Slug'!F115) -> 
F115: =IF(E115="","",'Weir & Slug'!E116) ->  | G115: =IF(E115="","",'Weir & Slug'!F116) -> 
F116: =IF(E116="","",'Weir & Slug'!E117) ->  | G116: =IF(E116="","",'Weir & Slug'!F117) -> 
F117: =IF(E117="","",'Weir & Slug'!E118) ->  | G117: =IF(E117="","",'Weir & Slug'!F118) -> 
F118: =IF(E118="","",'Weir & Slug'!E119) ->  | G118: =IF(E118="","",'Weir & Slug'!F119) -> 
F119: =IF(E119="","",'Weir & Slug'!E120) ->  | G119: =IF(E119="","",'Weir & Slug'!F120) -> 
F120: =IF(E120="","",'Weir & Slug'!E121) ->  | G120: =IF(E120="","",'Weir & Slug'!F121) -> 
F121: =IF(E121="","",'Weir & Slug'!E122) ->  | G121: =IF(E121="","",'Weir & Slug'!F122) -> 
F122: =IF(E122="","",'Weir & Slug'!E123) ->  | G122: =IF(E122="","",'Weir & Slug'!F123) -> 
F123: =IF(E123="","",'Weir & Slug'!E124) ->  | G123: =IF(E123="","",'Weir & Slug'!F124) -> 
F124: =IF(E124="","",'Weir & Slug'!E125) ->  | G124: =IF(E124="","",'Weir & Slug'!F125) -> 
F125: =IF(E125="","",'Weir & Slug'!E126) ->  | G125: =IF(E125="","",'Weir & Slug'!F126) -> 
F126: =IF(E126="","",'Weir & Slug'!E127) ->  | G126: =IF(E126="","",'Weir & Slug'!F127) -> 
F127: =IF(E127="","",'Weir & Slug'!E128) ->  | G127: =IF(E127="","",'Weir & Slug'!F128) -> 
F128: =IF(E128="","",'Weir & Slug'!E129) ->  | G128: =IF(E128="","",'Weir & Slug'!F129) -> 
F129: =IF(E129="","",'Weir & Slug'!E130) ->  | G129: =IF(E129="","",'Weir & Slug'!F130) -> 
F130: =IF(E130="","",'Weir & Slug'!E131) ->  | G130: =IF(E130="","",'Weir & Slug'!F131) -> 
F131: =IF(E131="","",'Weir & Slug'!E132) ->  | G131: =IF(E131="","",'Weir & Slug'!F132) -> 
F132: =IF(E132="","",'Weir & Slug'!E133) ->  | G132: =IF(E132="","",'Weir & Slug'!F133) -> 
F133: =IF(E133="","",'Weir & Slug'!E134) ->  | G133: =IF(E133="","",'Weir & Slug'!F134) -> 
F134: =IF(E134="","",'Weir & Slug'!E135) ->  | G134: =IF(E134="","",'Weir & Slug'!F135) ->  | I134: =IF(E134="","",IF(E134>1.8*Pipe_Diam/12,H134,IF(H134=0,MAX(F134,G134),MIN(MAX(F134,G134),H134)))) -> 
D135: =IF(D134="","",IF(D134>=high_water,"",IF(K134="Full Pipe Flow",(INT((D134)/change_inc)+1)*change_inc,D134+NonFPincr))) ->  | F135: =IF(E135="","",'Weir & Slug'!E136) ->  | G135: =IF(E135="","",'Weir & Slug'!F136) ->  | H135: =IF(E135="","",IF(D135-TailW<0,0,Barea*((64.4*(D135-TailW))/(1+Entrance_Coeff+km+Kp*Pipe_Len))^0.5)) ->  | K135: =IF(E135="","",IF(I135=F135,"Weir Flow",IF(I135=H135,"Full Pipe Flow","Slug Flow"))) ->  | R135: =IF(D135="","",IF(H135=I135,H135,"")) -> 
E136: =IF(D136="","",D136-crest) ->  | F136: =IF(E136="","",'Weir & Slug'!E137) ->  | G136: =IF(E136="","",'Weir & Slug'!F137) -> 
F137: =IF(E137="","",'Weir & Slug'!E138) ->  | G137: =IF(E137="","",'Weir & Slug'!F138) -> 
F138: =IF(E138="","",'Weir & Slug'!E139) ->  | G138: =IF(E138="","",'Weir & Slug'!F139) -> 
F139: =IF(E139="","",'Weir & Slug'!E140) ->  | G139: =IF(E139="","",'Weir & Slug'!F140) -> 
F140: =IF(E140="","",'Weir & Slug'!E141) ->  | G140: =IF(E140="","",'Weir & Slug'!F141) -> 
F141: =IF(E141="","",'Weir & Slug'!E142) ->  | G141: =IF(E141="","",'Weir & Slug'!F142) -> 
F142: =IF(E142="","",'Weir & Slug'!E143) ->  | G142: =IF(E142="","",'Weir & Slug'!F143) -> 
F143: =IF(E143="","",'Weir & Slug'!E144) ->  | G143: =IF(E143="","",'Weir & Slug'!F144) -> 
F144: =IF(E144="","",'Weir & Slug'!E145) ->  | G144: =IF(E144="","",'Weir & Slug'!F145) -> 
F145: =IF(E145="","",'Weir & Slug'!E146) ->  | G145: =IF(E145="","",'Weir & Slug'!F146) -> 
F146: =IF(E146="","",'Weir & Slug'!E147) ->  | G146: =IF(E146="","",'Weir & Slug'!F147) -> 
F147: =IF(E147="","",'Weir & Slug'!E148) ->  | G147: =IF(E147="","",'Weir & Slug'!F148) -> 
F148: =IF(E148="","",'Weir & Slug'!E149) ->  | G148: =IF(E148="","",'Weir & Slug'!F149) -> 
F149: =IF(E149="","",'Weir & Slug'!E150) ->  | G149: =IF(E149="","",'Weir & Slug'!F150) -> 
F150: =IF(E150="","",'Weir & Slug'!E151) ->  | G150: =IF(E150="","",'Weir & Slug'!F151) -> 
F151: =IF(E151="","",'Weir & Slug'!E152) ->  | G151: =IF(E151="","",'Weir & Slug'!F152) -> 
F152: =IF(E152="","",'Weir & Slug'!E153) ->  | G152: =IF(E152="","",'Weir & Slug'!F153) -> 
F153: =IF(E153="","",'Weir & Slug'!E154) ->  | G153: =IF(E153="","",'Weir & Slug'!F154) -> 
F154: =IF(E154="","",'Weir & Slug'!E155) ->  | G154: =IF(E154="","",'Weir & Slug'!F155) -> 
F155: =IF(E155="","",'Weir & Slug'!E156) ->  | G155: =IF(E155="","",'Weir & Slug'!F156) -> 
F156: =IF(E156="","",'Weir & Slug'!E157) ->  | G156: =IF(E156="","",'Weir & Slug'!F157) -> 
F157: =IF(E157="","",'Weir & Slug'!E158) ->  | G157: =IF(E157="","",'Weir & Slug'!F158) -> 
F158: =IF(E158="","",'Weir & Slug'!E159) ->  | G158: =IF(E158="","",'Weir & Slug'!F159) -> 
F159: =IF(E159="","",'Weir & Slug'!E160) ->  | G159: =IF(E159="","",'Weir & Slug'!F160) -> 
F160: =IF(E160="","",'Weir & Slug'!E161) ->  | G160: =IF(E160="","",'Weir & Slug'!F161) -> 
F161: =IF(E161="","",'Weir & Slug'!E162) ->  | G161: =IF(E161="","",'Weir & Slug'!F162) -> 
F162: =IF(E162="","",'Weir & Slug'!E163) ->  | G162: =IF(E162="","",'Weir & Slug'!F163) -> 
F163: =IF(E163="","",'Weir & Slug'!E164) ->  | G163: =IF(E163="","",'Weir & Slug'!F164) -> 
F164: =IF(E164="","",'Weir & Slug'!E165) ->  | G164: =IF(E164="","",'Weir & Slug'!F165) -> 
F165: =IF(E165="","",'Weir & Slug'!E166) ->  | G165: =IF(E165="","",'Weir & Slug'!F166) -> 
F166: =IF(E166="","",'Weir & Slug'!E167) ->  | G166: =IF(E166="","",'Weir & Slug'!F167) ->  | I166: =IF(E166="","",IF(E166>1.8*Pipe_Diam/12,H166,IF(H166=0,MAX(F166,G166),MIN(MAX(F166,G166),H166)))) -> 
D167: =IF(D166="","",IF(D166>=high_water,"",IF(K166="Full Pipe Flow",(INT((D166)/change_inc)+1)*change_inc,D166+NonFPincr))) ->  | F167: =IF(E167="","",'Weir & Slug'!E168) ->  | G167: =IF(E167="","",'Weir & Slug'!F168) ->  | R167: =IF(D167="","",IF(H167=I167,H167,"")) -> 
F168: =IF(E168="","",'Weir & Slug'!E169) ->  | G168: =IF(E168="","",'Weir & Slug'!F169) -> 
F169: =IF(E169="","",'Weir & Slug'!E170) ->  | G169: =IF(E169="","",'Weir & Slug'!F170) -> 
F170: =IF(E170="","",'Weir & Slug'!E171) ->  | G170: =IF(E170="","",'Weir & Slug'!F171) -> 
F171: =IF(E171="","",'Weir & Slug'!E172) ->  | G171: =IF(E171="","",'Weir & Slug'!F172) -> 
F172: =IF(E172="","",'Weir & Slug'!E173) ->  | G172: =IF(E172="","",'Weir & Slug'!F173) -> 
F173: =IF(E173="","",'Weir & Slug'!E174) ->  | G173: =IF(E173="","",'Weir & Slug'!F174) -> 
F174: =IF(E174="","",'Weir & Slug'!E175) ->  | G174: =IF(E174="","",'Weir & Slug'!F175) -> 
F175: =IF(E175="","",'Weir & Slug'!E176) ->  | G175: =IF(E175="","",'Weir & Slug'!F176) -> 
F176: =IF(E176="","",'Weir & Slug'!E177) ->  | G176: =IF(E176="","",'Weir & Slug'!F177) -> 
F177: =IF(E177="","",'Weir & Slug'!E178) ->  | G177: =IF(E177="","",'Weir & Slug'!F178) -> 
F178: =IF(E178="","",'Weir & Slug'!E179) ->  | G178: =IF(E178="","",'Weir & Slug'!F179) -> 
F179: =IF(E179="","",'Weir & Slug'!E180) ->  | G179: =IF(E179="","",'Weir & Slug'!F180) -> 
F180: =IF(E180="","",'Weir & Slug'!E181) ->  | G180: =IF(E180="","",'Weir & Slug'!F181) -> 
F181: =IF(E181="","",'Weir & Slug'!E182) ->  | G181: =IF(E181="","",'Weir & Slug'!F182) -> 
F182: =IF(E182="","",'Weir & Slug'!E183) ->  | G182: =IF(E182="","",'Weir & Slug'!F183) -> 
F183: =IF(E183="","",'Weir & Slug'!E184) ->  | G183: =IF(E183="","",'Weir & Slug'!F184) -> 
F184: =IF(E184="","",'Weir & Slug'!E185) ->  | G184: =IF(E184="","",'Weir & Slug'!F185) -> 
F185: =IF(E185="","",'Weir & Slug'!E186) ->  | G185: =IF(E185="","",'Weir & Slug'!F186) -> 
F186: =IF(E186="","",'Weir & Slug'!E187) ->  | G186: =IF(E186="","",'Weir & Slug'!F187) -> 
F187: =IF(E187="","",'Weir & Slug'!E188) ->  | G187: =IF(E187="","",'Weir & Slug'!F188) -> 
F188: =IF(E188="","",'Weir & Slug'!E189) ->  | G188: =IF(E188="","",'Weir & Slug'!F189) -> 
F189: =IF(E189="","",'Weir & Slug'!E190) ->  | G189: =IF(E189="","",'Weir & Slug'!F190) -> 
F190: =IF(E190="","",'Weir & Slug'!E191) ->  | G190: =IF(E190="","",'Weir & Slug'!F191) -> 
F191: =IF(E191="","",'Weir & Slug'!E192) ->  | G191: =IF(E191="","",'Weir & Slug'!F192) -> 
F192: =IF(E192="","",'Weir & Slug'!E193) ->  | G192: =IF(E192="","",'Weir & Slug'!F193) -> 
F193: =IF(E193="","",'Weir & Slug'!E194) ->  | G193: =IF(E193="","",'Weir & Slug'!F194) -> 
F194: =IF(E194="","",'Weir & Slug'!E195) ->  | G194: =IF(E194="","",'Weir & Slug'!F195) -> 
F195: =IF(E195="","",'Weir & Slug'!E196) ->  | G195: =IF(E195="","",'Weir & Slug'!F196) -> 
F196: =IF(E196="","",'Weir & Slug'!E197) ->  | G196: =IF(E196="","",'Weir & Slug'!F197) -> 
F197: =IF(E197="","",'Weir & Slug'!E198) ->  | G197: =IF(E197="","",'Weir & Slug'!F198) -> 
F198: =IF(E198="","",'Weir & Slug'!E199) ->  | G198: =IF(E198="","",'Weir & Slug'!F199) ->  | I198: =IF(E198="","",IF(E198>1.8*Pipe_Diam/12,H198,IF(H198=0,MAX(F198,G198),MIN(MAX(F198,G198),H198)))) -> 
D199: =IF(D198="","",IF(D198>=high_water,"",IF(K198="Full Pipe Flow",(INT((D198)/change_inc)+1)*change_inc,D198+NonFPincr))) ->  | F199: =IF(E199="","",'Weir & Slug'!E200) ->  | G199: =IF(E199="","",'Weir & Slug'!F200) ->  | H199: =IF(E199="","",IF(D199-TailW<0,0,Barea*((64.4*(D199-TailW))/(1+Entrance_Coeff+km+Kp*Pipe_Len))^0.5)) ->  | K199: =IF(E199="","",IF(I199=F199,"Weir Flow",IF(I199=H199,"Full Pipe Flow","Slug Flow"))) ->  | R199: =IF(D199="","",IF(H199=I199,H199,"")) -> 
E200: =IF(D200="","",D200-crest) ->  | F200: =IF(E200="","",'Weir & Slug'!E201) ->  | G200: =IF(E200="","",'Weir & Slug'!F201) -> 
... 5 more rows

Sheet Flow Data (hidden)
A1: Elev | B1: Full Pipe | C1: Structure Outflow
A2: ='Hood Inlet'!D6 -> 1083.5 | B2: ='Hood Inlet'!H6 -> 38.30070205 | C2: ='Hood Inlet'!I6 -> 0
A3: ='Hood Inlet'!D7 -> 1083.6 | B3: ='Hood Inlet'!H7 -> 38.40694553 | C3: ='Hood Inlet'!I7 -> 0.03921829657
A4: ='Hood Inlet'!D8 -> 1083.7 | B4: ='Hood Inlet'!H8 -> 38.51289593 | C4: ='Hood Inlet'!I8 -> 0.1572098271
A5: ='Hood Inlet'!D9 -> 1083.8 | B5: ='Hood Inlet'!H9 -> 38.61855565 | C5: ='Hood Inlet'!I9 -> 0.3541671664
A6: ='Hood Inlet'!D10 -> 1083.9 | B6: ='Hood Inlet'!H10 -> 38.72392707 | C6: ='Hood Inlet'!I10 -> 0.6298421005
A7: ='Hood Inlet'!D11 -> 1084 | B7: ='Hood Inlet'!H11 -> 38.82901255 | C7: ='Hood Inlet'!I11 -> 0.9835110319
A8: ='Hood Inlet'!D12 -> 1084.1 | B8: ='Hood Inlet'!H12 -> 38.93381439 | C8: ='Hood Inlet'!I12 -> 1.413934154
A9: ='Hood Inlet'!D13 -> 1084.2 | B9: ='Hood Inlet'!H13 -> 39.03833489 | C9: ='Hood Inlet'!I13 -> 1.919306667
A10: ='Hood Inlet'!D14 -> 1084.3 | B10: ='Hood Inlet'!H14 -> 39.14257629 | C10: ='Hood Inlet'!I14 -> 2.497199656
A11: ='Hood Inlet'!D15 -> 1084.4 | B11: ='Hood Inlet'!H15 -> 39.24654082 | C11: ='Hood Inlet'!I15 -> 3.144487242
A12: ='Hood Inlet'!D16 -> 1084.5 | B12: ='Hood Inlet'!H16 -> 39.35023067 | C12: ='Hood Inlet'!I16 -> 3.857255106
A13: ='Hood Inlet'!D17 -> 1084.6 | B13: ='Hood Inlet'!H17 -> 39.45364801 | C13: ='Hood Inlet'!I17 -> 4.630682995
A14: ='Hood Inlet'!D18 -> 1084.7 | B14: ='Hood Inlet'!H18 -> 39.55679498 | C14: ='Hood Inlet'!I18 -> 5.458889689
A15: ='Hood Inlet'!D19 -> 1084.8 | B15: ='Hood Inlet'!H19 -> 39.65967368 | C15: ='Hood Inlet'!I19 -> 6.334721641
A16: ='Hood Inlet'!D20 -> 1084.9 | B16: ='Hood Inlet'!H20 -> 39.76228621 | C16: ='Hood Inlet'!I20 -> 7.249452841
A17: ='Hood Inlet'!D21 -> 1085 | B17: ='Hood Inlet'!H21 -> 39.8646346 | C17: ='Hood Inlet'!I21 -> 8.192335887
A18: ='Hood Inlet'!D22 -> 1085.1 | B18: ='Hood Inlet'!H22 -> 39.9667209 | C18: ='Hood Inlet'!I22 -> 9.149882664
A19: ='Hood Inlet'!D23 -> 1085.2 | B19: ='Hood Inlet'!H23 -> 40.06854711 | C19: ='Hood Inlet'!I23 -> 10.10459586
A20: ='Hood Inlet'!D24 -> 1085.3 | B20: ='Hood Inlet'!H24 -> 40.1701152 | C20: ='Hood Inlet'!I24 -> 11.03238442
A21: ='Hood Inlet'!D25 -> 1085.4 | B21: ='Hood Inlet'!H25 -> 40.27142712 | C21: ='Hood Inlet'!I25 -> 11.89579136
A22: ='Hood Inlet'!D26 -> 1085.5 | B22: ='Hood Inlet'!H26 -> 40.37248482 | C22: ='Hood Inlet'!I26 -> 12.60702124
A23: ='Hood Inlet'!D27 -> 1085.6 | B23: ='Hood Inlet'!H27 -> 40.47329018 | C23: ='Hood Inlet'!I27 -> 13.09224912
A24: ='Hood Inlet'!D28 -> 1085.7 | B24: ='Hood Inlet'!H28 -> 40.57384509 | C24: ='Hood Inlet'!I28 -> 13.57833296
A25: ='Hood Inlet'!D29 -> 1085.8 | B25: ='Hood Inlet'!H29 -> 40.67415141 | C25: ='Hood Inlet'!I29 -> 14.06549115
A26: ='Hood Inlet'!D30 -> 1085.9 | B26: ='Hood Inlet'!H30 -> 40.77421098 | C26: ='Hood Inlet'!I30 -> 14.55391264
A27: ='Hood Inlet'!D31 -> 1086 | B27: ='Hood Inlet'!H31 -> 40.8740256 | C27: ='Hood Inlet'!I31 -> 15.04376155
A28: ='Hood Inlet'!D32 -> 1086.1 | B28: ='Hood Inlet'!H32 -> 40.97359706 | C28: ='Hood Inlet'!I32 -> 15.53518092
A29: ='Hood Inlet'!D33 -> 1086.2 | B29: ='Hood Inlet'!H33 -> 41.07292714 | C29: ='Hood Inlet'!I33 -> 16.02829584
A30: ='Hood Inlet'!D34 -> 1086.3 | B30: ='Hood Inlet'!H34 -> 41.17201758 | C30: ='Hood Inlet'!I34 -> 16.52321595
A31: ='Hood Inlet'!D35 -> 1086.4 | B31: ='Hood Inlet'!H35 -> 41.2708701 | C31: ='Hood Inlet'!I35 -> 17.0200376
A32: ='Hood Inlet'!D36 -> 1086.5 | B32: ='Hood Inlet'!H36 -> 41.36948642 | C32: ='Hood Inlet'!I36 -> 17.51884558
A33: ='Hood Inlet'!D37 -> 1086.6 | B33: ='Hood Inlet'!H37 -> 41.46786822 | C33: ='Hood Inlet'!I37 -> 18.0197147
A34: ='Hood Inlet'!D38 -> 1086.7 | B34: ='Hood Inlet'!H38 -> 41.56601715 | C34: ='Hood Inlet'!I38 -> 18.52271097
A35: ='Hood Inlet'!D39 -> 1086.8 | B35: ='Hood Inlet'!H39 -> 41.66393488 | C35: ='Hood Inlet'!I39 -> 20.3646753
A36: ='Hood Inlet'!D40 -> 1086.9 | B36: ='Hood Inlet'!H40 -> 41.76162302 | C36: ='Hood Inlet'!I40 -> 31.6783838
A37: ='Hood Inlet'!D41 -> 1087 | B37: ='Hood Inlet'!H41 -> 41.85908318 | C37: ='Hood Inlet'!I41 -> 41.85908318
A38: ='Hood Inlet'!D42 -> 1087 | B38: ='Hood Inlet'!H42 -> 41.85908318 | C38: ='Hood Inlet'!I42 -> 41.85908318
A39: ='Hood Inlet'!D43 -> 1087.2 | B39: ='Hood Inlet'!H43 -> 42.05332591 | C39: ='Hood Inlet'!I43 -> 42.05332591
A40: ='Hood Inlet'!D44 -> 1087.4 | B40: ='Hood Inlet'!H44 -> 42.24667556 | C40: ='Hood Inlet'!I44 -> 42.24667556
A41: ='Hood Inlet'!D45 -> 1087.6 | B41: ='Hood Inlet'!H45 -> 42.43914432 | C41: ='Hood Inlet'!I45 -> 42.43914432
A42: ='Hood Inlet'!D46 -> 1087.8 | B42: ='Hood Inlet'!H46 -> 42.63074414 | C42: ='Hood Inlet'!I46 -> 42.63074414
A43: ='Hood Inlet'!D47 -> 1088 | B43: ='Hood Inlet'!H47 -> 42.82148668 | C43: ='Hood Inlet'!I47 -> 42.82148668
A44: ='Hood Inlet'!D48 -> 1088.2 | B44: ='Hood Inlet'!H48 -> 43.01138334 | C44: ='Hood Inlet'!I48 -> 43.01138334
A45: ='Hood Inlet'!D49 -> 1088.4 | B45: ='Hood Inlet'!H49 -> 43.20044528 | C45: ='Hood Inlet'!I49 -> 43.20044528
A46: ='Hood Inlet'!D50 -> 1088.6 | B46: ='Hood Inlet'!H50 -> 43.3886834 | C46: ='Hood Inlet'!I50 -> 43.3886834
A47: ='Hood Inlet'!D51 -> 1088.8 | B47: ='Hood Inlet'!H51 -> 43.57610839 | C47: ='Hood Inlet'!I51 -> 43.57610839
A48: ='Hood Inlet'!D52 -> 1089 | B48: ='Hood Inlet'!H52 -> 43.7627307 | C48: ='Hood Inlet'!I52 -> 43.7627307
A49: ='Hood Inlet'!D53 -> 1089.2 | B49: ='Hood Inlet'!H53 -> 43.94856054 | C49: ='Hood Inlet'!I53 -> 43.94856054
A50: ='Hood Inlet'!D54 -> 1089.4 | B50: ='Hood Inlet'!H54 -> 44.13360793 | C50: ='Hood Inlet'!I54 -> 44.13360793
A51: ='Hood Inlet'!D55 -> 1089.6 | B51: ='Hood Inlet'!H55 -> 44.31788267 | C51: ='Hood Inlet'!I55 -> 44.31788267
A52: ='Hood Inlet'!D56 -> 1089.8 | B52: ='Hood Inlet'!H56 -> 44.50139435 | C52: ='Hood Inlet'!I56 -> 44.50139435
A53: ='Hood Inlet'!D57 -> 1090 | B53: ='Hood Inlet'!H57 -> 44.68415239 | C53: ='Hood Inlet'!I57 -> 44.68415239
A54: ='Hood Inlet'!D58 -> 1090.2 | B54: ='Hood Inlet'!H58 -> 44.86616598 | C54: ='Hood Inlet'!I58 -> 44.86616598
A55: ='Hood Inlet'!D59 -> 1090.4 | B55: ='Hood Inlet'!H59 -> 45.04744416 | C55: ='Hood Inlet'!I59 -> 45.04744416
A56: ='Hood Inlet'!D60 -> 1090.6 | B56: ='Hood Inlet'!H60 -> 45.22799576 | C56: ='Hood Inlet'!I60 -> 45.22799576
A57: ='Hood Inlet'!D61 -> 1090.8 | B57: ='Hood Inlet'!H61 -> 45.40782946 | C57: ='Hood Inlet'!I61 -> 45.40782946
A58: ='Hood Inlet'!D62 -> 1091 | B58: ='Hood Inlet'!H62 -> 45.58695374 | C58: ='Hood Inlet'!I62 -> 45.58695374
A59: ='Hood Inlet'!D63 ->  | B59: ='Hood Inlet'!H63 ->  | C59: ='Hood Inlet'!I63 -> 
A60: ='Hood Inlet'!D64 ->  | B60: ='Hood Inlet'!H64 ->  | C60: ='Hood Inlet'!I64 -> 
A61: ='Hood Inlet'!D65 ->  | B61: ='Hood Inlet'!H65 ->  | C61: ='Hood Inlet'!I65 -> 
A62: ='Hood Inlet'!D66 ->  | B62: ='Hood Inlet'!H66 ->  | C62: ='Hood Inlet'!I66 -> 
A63: ='Hood Inlet'!D67 ->  | B63: ='Hood Inlet'!H67 ->  | C63: ='Hood Inlet'!I67 -> 
A64: ='Hood Inlet'!D68 ->  | B64: ='Hood Inlet'!H68 ->  | C64: ='Hood Inlet'!I68 -> 
A65: ='Hood Inlet'!D69 ->  | B65: ='Hood Inlet'!H69 ->  | C65: ='Hood Inlet'!I69 -> 
A66: ='Hood Inlet'!D70 ->  | B66: ='Hood Inlet'!H70 ->  | C66: ='Hood Inlet'!I70 -> 
A67: ='Hood Inlet'!D71 ->  | B67: ='Hood Inlet'!H71 ->  | C67: ='Hood Inlet'!I71 -> 
A68: ='Hood Inlet'!D72 ->  | B68: ='Hood Inlet'!H72 ->  | C68: ='Hood Inlet'!I72 -> 
A69: ='Hood Inlet'!D73 ->  | B69: ='Hood Inlet'!H73 ->  | C69: ='Hood Inlet'!I73 -> 
A70: ='Hood Inlet'!D74 ->  | B70: ='Hood Inlet'!H74 ->  | C70: ='Hood Inlet'!I74 -> 
A71: ='Hood Inlet'!D75 ->  | B71: ='Hood Inlet'!H75 ->  | C71: ='Hood Inlet'!I75 -> 
A72: ='Hood Inlet'!D76 ->  | B72: ='Hood Inlet'!H76 ->  | C72: ='Hood Inlet'!I76 -> 
A73: ='Hood Inlet'!D77 ->  | B73: ='Hood Inlet'!H77 ->  | C73: ='Hood Inlet'!I77 -> 
A74: ='Hood Inlet'!D78 ->  | B74: ='Hood Inlet'!H78 ->  | C74: ='Hood Inlet'!I78 -> 
A75: ='Hood Inlet'!D79 ->  | B75: ='Hood Inlet'!H79 ->  | C75: ='Hood Inlet'!I79 -> 
A76: ='Hood Inlet'!D80 ->  | B76: ='Hood Inlet'!H80 ->  | C76: ='Hood Inlet'!I80 -> 
A77: ='Hood Inlet'!D81 ->  | B77: ='Hood Inlet'!H81 ->  | C77: ='Hood Inlet'!I81 -> 
A78: ='Hood Inlet'!D82 ->  | B78: ='Hood Inlet'!H82 ->  | C78: ='Hood Inlet'!I82 -> 
A79: ='Hood Inlet'!D83 ->  | B79: ='Hood Inlet'!H83 ->  | C79: ='Hood Inlet'!I83 -> 
A80: ='Hood Inlet'!D84 ->  | B80: ='Hood Inlet'!H84 ->  | C80: ='Hood Inlet'!I84 -> 
A81: ='Hood Inlet'!D85 ->  | B81: ='Hood Inlet'!H85 ->  | C81: ='Hood Inlet'!I85 -> 
A82: ='Hood Inlet'!D86 ->  | B82: ='Hood Inlet'!H86 ->  | C82: ='Hood Inlet'!I86 -> 
A83: ='Hood Inlet'!D87 ->  | B83: ='Hood Inlet'!H87 ->  | C83: ='Hood Inlet'!I87 -> 
A84: ='Hood Inlet'!D88 ->  | B84: ='Hood Inlet'!H88 ->  | C84: ='Hood Inlet'!I88 -> 
A85: ='Hood Inlet'!D89 ->  | B85: ='Hood Inlet'!H89 ->  | C85: ='Hood Inlet'!I89 -> 
A86: ='Hood Inlet'!D90 ->  | B86: ='Hood Inlet'!H90 ->  | C86: ='Hood Inlet'!I90 -> 
A87: ='Hood Inlet'!D91 ->  | B87: ='Hood Inlet'!H91 ->  | C87: ='Hood Inlet'!I91 -> 
A88: ='Hood Inlet'!D92 ->  | B88: ='Hood Inlet'!H92 ->  | C88: ='Hood Inlet'!I92 -> 
A89: ='Hood Inlet'!D93 ->  | B89: ='Hood Inlet'!H93 ->  | C89: ='Hood Inlet'!I93 -> 
A90: ='Hood Inlet'!D94 ->  | B90: ='Hood Inlet'!H94 ->  | C90: ='Hood Inlet'!I94 -> 
A91: ='Hood Inlet'!D95 ->  | B91: ='Hood Inlet'!H95 ->  | C91: ='Hood Inlet'!I95 -> 
A92: ='Hood Inlet'!D96 ->  | B92: ='Hood Inlet'!H96 ->  | C92: ='Hood Inlet'!I96 -> 
A93: ='Hood Inlet'!D97 ->  | B93: ='Hood Inlet'!H97 ->  | C93: ='Hood Inlet'!I97 -> 
A94: ='Hood Inlet'!D98 ->  | B94: ='Hood Inlet'!H98 ->  | C94: ='Hood Inlet'!I98 -> 
A95: ='Hood Inlet'!D99 ->  | B95: ='Hood Inlet'!H99 ->  | C95: ='Hood Inlet'!I99 -> 
A96: ='Hood Inlet'!D100 ->  | B96: ='Hood Inlet'!H100 ->  | C96: ='Hood Inlet'!I100 -> 
A97: ='Hood Inlet'!D101 ->  | B97: ='Hood Inlet'!H101 ->  | C97: ='Hood Inlet'!I101 -> 
A98: ='Hood Inlet'!D102 ->  | B98: ='Hood Inlet'!H102 ->  | C98: ='Hood Inlet'!I102 -> 
A99: ='Hood Inlet'!D103 ->  | B99: ='Hood Inlet'!H103 ->  | C99: ='Hood Inlet'!I103 -> 
A100: ='Hood Inlet'!D104 ->  | B100: ='Hood Inlet'!H104 ->  | C100: ='Hood Inlet'!I104 -> 
A101: ='Hood Inlet'!D105 ->  | B101: ='Hood Inlet'!H105 ->  | C101: ='Hood Inlet'!I105 -> 
A102: ='Hood Inlet'!D106 ->  | B102: ='Hood Inlet'!H106 ->  | C102: ='Hood Inlet'!I106 -> 
A103: ='Hood Inlet'!D107 ->  | B103: ='Hood Inlet'!H107 ->  | C103: ='Hood Inlet'!I107 -> 
A104: ='Hood Inlet'!D108 ->  | B104: ='Hood Inlet'!H108 ->  | C104: ='Hood Inlet'!I108 -> 
A105: ='Hood Inlet'!D109 ->  | B105: ='Hood Inlet'!H109 ->  | C105: ='Hood Inlet'!I109 -> 
A106: ='Hood Inlet'!D110 ->  | B106: ='Hood Inlet'!H110 ->  | C106: ='Hood Inlet'!I110 -> 
A107: ='Hood Inlet'!D111 ->  | B107: ='Hood Inlet'!H111 ->  | C107: ='Hood Inlet'!I111 -> 
A108: ='Hood Inlet'!D112 ->  | B108: ='Hood Inlet'!H112 ->  | C108: ='Hood Inlet'!I112 -> 
A109: ='Hood Inlet'!D113 ->  | B109: ='Hood Inlet'!H113 ->  | C109: ='Hood Inlet'!I113 -> 
A110: ='Hood Inlet'!D114 ->  | B110: ='Hood Inlet'!H114 ->  | C110: ='Hood Inlet'!I114 -> 
A111: ='Hood Inlet'!D115 ->  | B111: ='Hood Inlet'!H115 ->  | C111: ='Hood Inlet'!I115 -> 
A112: ='Hood Inlet'!D116 ->  | B112: ='Hood Inlet'!H116 ->  | C112: ='Hood Inlet'!I116 -> 
A113: ='Hood Inlet'!D117 ->  | B113: ='Hood Inlet'!H117 ->  | C113: ='Hood Inlet'!I117 -> 
A114: ='Hood Inlet'!D118 ->  | B114: ='Hood Inlet'!H118 ->  | C114: ='Hood Inlet'!I118 -> 
A115: ='Hood Inlet'!D119 ->  | B115: ='Hood Inlet'!H119 ->  | C115: ='Hood Inlet'!I119 -> 
A116: ='Hood Inlet'!D120 ->  | B116: ='Hood Inlet'!H120 ->  | C116: ='Hood Inlet'!I120 -> 
A117: ='Hood Inlet'!D121 ->  | B117: ='Hood Inlet'!H121 ->  | C117: ='Hood Inlet'!I121 -> 
A118: ='Hood Inlet'!D122 ->  | B118: ='Hood Inlet'!H122 ->  | C118: ='Hood Inlet'!I122 -> 
A119: ='Hood Inlet'!D123 ->  | B119: ='Hood Inlet'!H123 ->  | C119: ='Hood Inlet'!I123 -> 
A120: ='Hood Inlet'!D124 ->  | B120: ='Hood Inlet'!H124 ->  | C120: ='Hood Inlet'!I124 -> 
A121: ='Hood Inlet'!D125 ->  | B121: ='Hood Inlet'!H125 ->  | C121: ='Hood Inlet'!I125 -> 
A122: ='Hood Inlet'!D126 ->  | B122: ='Hood Inlet'!H126 ->  | C122: ='Hood Inlet'!I126 -> 
A123: ='Hood Inlet'!D127 ->  | B123: ='Hood Inlet'!H127 ->  | C123: ='Hood Inlet'!I127 -> 
A124: ='Hood Inlet'!D128 ->  | B124: ='Hood Inlet'!H128 ->  | C124: ='Hood Inlet'!I128 -> 
A125: ='Hood Inlet'!D129 ->  | B125: ='Hood Inlet'!H129 ->  | C125: ='Hood Inlet'!I129 -> 
A126: ='Hood Inlet'!D130 ->  | B126: ='Hood Inlet'!H130 ->  | C126: ='Hood Inlet'!I130 -> 
A127: ='Hood Inlet'!D131 ->  | B127: ='Hood Inlet'!H131 ->  | C127: ='Hood Inlet'!I131 -> 
A128: ='Hood Inlet'!D132 ->  | B128: ='Hood Inlet'!H132 ->  | C128: ='Hood Inlet'!I132 -> 
A129: ='Hood Inlet'!D133 ->  | B129: ='Hood Inlet'!H133 ->  | C129: ='Hood Inlet'!I133 -> 
A130: ='Hood Inlet'!D134 ->  | B130: ='Hood Inlet'!H134 ->  | C130: ='Hood Inlet'!I134 -> 
A131: ='Hood Inlet'!D135 ->  | B131: ='Hood Inlet'!H135 ->  | C131: ='Hood Inlet'!I135 -> 
A132: ='Hood Inlet'!D136 ->  | B132: ='Hood Inlet'!H136 ->  | C132: ='Hood Inlet'!I136 -> 
A133: ='Hood Inlet'!D137 ->  | B133: ='Hood Inlet'!H137 ->  | C133: ='Hood Inlet'!I137 -> 
A134: ='Hood Inlet'!D138 ->  | B134: ='Hood Inlet'!H138 ->  | C134: ='Hood Inlet'!I138 -> 
A135: ='Hood Inlet'!D139 ->  | B135: ='Hood Inlet'!H139 ->  | C135: ='Hood Inlet'!I139 -> 
A136: ='Hood Inlet'!D140 ->  | B136: ='Hood Inlet'!H140 ->  | C136: ='Hood Inlet'!I140 -> 
A137: ='Hood Inlet'!D141 ->  | B137: ='Hood Inlet'!H141 ->  | C137: ='Hood Inlet'!I141 -> 
A138: ='Hood Inlet'!D142 ->  | B138: ='Hood Inlet'!H142 ->  | C138: ='Hood Inlet'!I142 -> 
A139: ='Hood Inlet'!D143 ->  | B139: ='Hood Inlet'!H143 ->  | C139: ='Hood Inlet'!I143 -> 
A140: ='Hood Inlet'!D144 ->  | B140: ='Hood Inlet'!H144 ->  | C140: ='Hood Inlet'!I144 -> 
A141: ='Hood Inlet'!D145 ->  | B141: ='Hood Inlet'!H145 ->  | C141: ='Hood Inlet'!I145 -> 
A142: ='Hood Inlet'!D146 ->  | B142: ='Hood Inlet'!H146 ->  | C142: ='Hood Inlet'!I146 -> 
A143: ='Hood Inlet'!D147 ->  | B143: ='Hood Inlet'!H147 ->  | C143: ='Hood Inlet'!I147 -> 
A144: ='Hood Inlet'!D148 ->  | B144: ='Hood Inlet'!H148 ->  | C144: ='Hood Inlet'!I148 -> 
A145: ='Hood Inlet'!D149 ->  | B145: ='Hood Inlet'!H149 ->  | C145: ='Hood Inlet'!I149 -> 
A146: ='Hood Inlet'!D150 ->  | B146: ='Hood Inlet'!H150 ->  | C146: ='Hood Inlet'!I150 -> 
A147: ='Hood Inlet'!D151 ->  | B147: ='Hood Inlet'!H151 ->  | C147: ='Hood Inlet'!I151 -> 
A148: ='Hood Inlet'!D152 ->  | B148: ='Hood Inlet'!H152 ->  | C148: ='Hood Inlet'!I152 -> 
A149: ='Hood Inlet'!D153 ->  | B149: ='Hood Inlet'!H153 ->  | C149: ='Hood Inlet'!I153 -> 
A150: ='Hood Inlet'!D154 ->  | B150: ='Hood Inlet'!H154 ->  | C150: ='Hood Inlet'!I154 -> 
A151: ='Hood Inlet'!D155 ->  | B151: ='Hood Inlet'!H155 ->  | C151: ='Hood Inlet'!I155 -> 
A152: ='Hood Inlet'!D156 ->  | B152: ='Hood Inlet'!H156 ->  | C152: ='Hood Inlet'!I156 -> 
A153: ='Hood Inlet'!D157 ->  | B153: ='Hood Inlet'!H157 ->  | C153: ='Hood Inlet'!I157 -> 
A154: ='Hood Inlet'!D158 ->  | B154: ='Hood Inlet'!H158 ->  | C154: ='Hood Inlet'!I158 -> 
A155: ='Hood Inlet'!D159 ->  | B155: ='Hood Inlet'!H159 ->  | C155: ='Hood Inlet'!I159 -> 
A156: ='Hood Inlet'!D160 ->  | B156: ='Hood Inlet'!H160 ->  | C156: ='Hood Inlet'!I160 -> 
A157: ='Hood Inlet'!D161 ->  | B157: ='Hood Inlet'!H161 ->  | C157: ='Hood Inlet'!I161 -> 
A158: ='Hood Inlet'!D162 ->  | B158: ='Hood Inlet'!H162 ->  | C158: ='Hood Inlet'!I162 -> 
A159: ='Hood Inlet'!D163 ->  | B159: ='Hood Inlet'!H163 ->  | C159: ='Hood Inlet'!I163 -> 
A160: ='Hood Inlet'!D164 ->  | B160: ='Hood Inlet'!H164 ->  | C160: ='Hood Inlet'!I164 -> 
A161: ='Hood Inlet'!D165 ->  | B161: ='Hood Inlet'!H165 ->  | C161: ='Hood Inlet'!I165 -> 
A162: ='Hood Inlet'!D166 ->  | B162: ='Hood Inlet'!H166 ->  | C162: ='Hood Inlet'!I166 -> 
A163: ='Hood Inlet'!D167 ->  | B163: ='Hood Inlet'!H167 ->  | C163: ='Hood Inlet'!I167 -> 
A164: ='Hood Inlet'!D168 ->  | B164: ='Hood Inlet'!H168 ->  | C164: ='Hood Inlet'!I168 -> 
A165: ='Hood Inlet'!D169 ->  | B165: ='Hood Inlet'!H169 ->  | C165: ='Hood Inlet'!I169 -> 
A166: ='Hood Inlet'!D170 ->  | B166: ='Hood Inlet'!H170 ->  | C166: ='Hood Inlet'!I170 -> 
A167: ='Hood Inlet'!D171 ->  | B167: ='Hood Inlet'!H171 ->  | C167: ='Hood Inlet'!I171 -> 
A168: ='Hood Inlet'!D172 ->  | B168: ='Hood Inlet'!H172 ->  | C168: ='Hood Inlet'!I172 -> 
A169: ='Hood Inlet'!D173 ->  | B169: ='Hood Inlet'!H173 ->  | C169: ='Hood Inlet'!I173 -> 
A170: ='Hood Inlet'!D174 ->  | B170: ='Hood Inlet'!H174 ->  | C170: ='Hood Inlet'!I174 -> 
A171: ='Hood Inlet'!D175 ->  | B171: ='Hood Inlet'!H175 ->  | C171: ='Hood Inlet'!I175 -> 
A172: ='Hood Inlet'!D176 ->  | B172: ='Hood Inlet'!H176 ->  | C172: ='Hood Inlet'!I176 -> 
A173: ='Hood Inlet'!D177 ->  | B173: ='Hood Inlet'!H177 ->  | C173: ='Hood Inlet'!I177 -> 
A174: ='Hood Inlet'!D178 ->  | B174: ='Hood Inlet'!H178 ->  | C174: ='Hood Inlet'!I178 -> 
A175: ='Hood Inlet'!D179 ->  | B175: ='Hood Inlet'!H179 ->  | C175: ='Hood Inlet'!I179 -> 
A176: ='Hood Inlet'!D180 ->  | B176: ='Hood Inlet'!H180 ->  | C176: ='Hood Inlet'!I180 -> 
A177: ='Hood Inlet'!D181 ->  | B177: ='Hood Inlet'!H181 ->  | C177: ='Hood Inlet'!I181 -> 
A178: ='Hood Inlet'!D182 ->  | B178: ='Hood Inlet'!H182 ->  | C178: ='Hood Inlet'!I182 -> 
A179: ='Hood Inlet'!D183 ->  | B179: ='Hood Inlet'!H183 ->  | C179: ='Hood Inlet'!I183 -> 
A180: ='Hood Inlet'!D184 ->  | B180: ='Hood Inlet'!H184 ->  | C180: ='Hood Inlet'!I184 -> 
A181: ='Hood Inlet'!D185 ->  | B181: ='Hood Inlet'!H185 ->  | C181: ='Hood Inlet'!I185 -> 
A182: ='Hood Inlet'!D186 ->  | B182: ='Hood Inlet'!H186 ->  | C182: ='Hood Inlet'!I186 -> 
A183: ='Hood Inlet'!D187 ->  | B183: ='Hood Inlet'!H187 ->  | C183: ='Hood Inlet'!I187 -> 
A184: ='Hood Inlet'!D188 ->  | B184: ='Hood Inlet'!H188 ->  | C184: ='Hood Inlet'!I188 -> 
A185: ='Hood Inlet'!D189 ->  | B185: ='Hood Inlet'!H189 ->  | C185: ='Hood Inlet'!I189 -> 
A186: ='Hood Inlet'!D190 ->  | B186: ='Hood Inlet'!H190 ->  | C186: ='Hood Inlet'!I190 -> 
A187: ='Hood Inlet'!D191 ->  | B187: ='Hood Inlet'!H191 ->  | C187: ='Hood Inlet'!I191 -> 
A188: ='Hood Inlet'!D192 ->  | B188: ='Hood Inlet'!H192 ->  | C188: ='Hood Inlet'!I192 -> 
A189: ='Hood Inlet'!D193 ->  | B189: ='Hood Inlet'!H193 ->  | C189: ='Hood Inlet'!I193 -> 
A190: ='Hood Inlet'!D194 ->  | B190: ='Hood Inlet'!H194 ->  | C190: ='Hood Inlet'!I194 -> 
A191: ='Hood Inlet'!D195 ->  | B191: ='Hood Inlet'!H195 ->  | C191: ='Hood Inlet'!I195 -> 
A192: ='Hood Inlet'!D196 ->  | B192: ='Hood Inlet'!H196 ->  | C192: ='Hood Inlet'!I196 -> 
A193: ='Hood Inlet'!D197 ->  | B193: ='Hood Inlet'!H197 ->  | C193: ='Hood Inlet'!I197 -> 
A194: ='Hood Inlet'!D198 ->  | B194: ='Hood Inlet'!H198 ->  | C194: ='Hood Inlet'!I198 -> 
A195: ='Hood Inlet'!D199 ->  | B195: ='Hood Inlet'!H199 ->  | C195: ='Hood Inlet'!I199 -> 
A196: ='Hood Inlet'!D200 ->  | B196: ='Hood Inlet'!H200 ->  | C196: ='Hood Inlet'!I200 -> 
A197: ='Hood Inlet'!D201 ->  | B197: ='Hood Inlet'!H201 ->  | C197: ='Hood Inlet'!I201 -> 
A198: ='Hood Inlet'!D202 ->  | B198: ='Hood Inlet'!H202 ->  | C198: ='Hood Inlet'!I202 -> 
A199: ='Hood Inlet'!D203 ->  | B199: ='Hood Inlet'!H203 ->  | C199: ='Hood Inlet'!I203 -> 
A200: ='Hood Inlet'!D204 ->  | B200: ='Hood Inlet'!H204 ->  | C200: ='Hood Inlet'!I204 -> 
... 1 more rows

Sheet Weir Slug Data (hidden)
A1: Elev | B1: Weir | C1: Slug Flow
A2: ='Hood Inlet'!D6 -> 1083.5 | B2: ='Hood Inlet'!F6 -> 0 | C2: ='Hood Inlet'!G6 -> 0
A3: ='Hood Inlet'!D7 -> 1083.6 | B3: ='Hood Inlet'!F7 -> 0.03921829657 | C3: ='Hood Inlet'!G7 -> 0
A4: ='Hood Inlet'!D8 -> 1083.7 | B4: ='Hood Inlet'!F8 -> 0.1572098271 | C4: ='Hood Inlet'!G8 -> 0
A5: ='Hood Inlet'!D9 -> 1083.8 | B5: ='Hood Inlet'!F9 -> 0.3541671664 | C5: ='Hood Inlet'!G9 -> 0
A6: ='Hood Inlet'!D10 -> 1083.9 | B6: ='Hood Inlet'!F10 -> 0.6298421005 | C6: ='Hood Inlet'!G10 -> 0
A7: ='Hood Inlet'!D11 -> 1084 | B7: ='Hood Inlet'!F11 -> 0.9835110319 | C7: ='Hood Inlet'!G11 -> 0
A8: ='Hood Inlet'!D12 -> 1084.1 | B8: ='Hood Inlet'!F12 -> 1.413934154 | C8: ='Hood Inlet'!G12 -> 0
A9: ='Hood Inlet'!D13 -> 1084.2 | B9: ='Hood Inlet'!F13 -> 1.919306667 | C9: ='Hood Inlet'!G13 -> 0
A10: ='Hood Inlet'!D14 -> 1084.3 | B10: ='Hood Inlet'!F14 -> 2.497199656 | C10: ='Hood Inlet'!G14 -> 0
A11: ='Hood Inlet'!D15 -> 1084.4 | B11: ='Hood Inlet'!F15 -> 3.144487242 | C11: ='Hood Inlet'!G15 -> 0
A12: ='Hood Inlet'!D16 -> 1084.5 | B12: ='Hood Inlet'!F16 -> 3.857255106 | C12: ='Hood Inlet'!G16 -> 0
A13: ='Hood Inlet'!D17 -> 1084.6 | B13: ='Hood Inlet'!F17 -> 4.630682995 | C13: ='Hood Inlet'!G17 -> 0
A14: ='Hood Inlet'!D18 -> 1084.7 | B14: ='Hood Inlet'!F18 -> 5.458889689 | C14: ='Hood Inlet'!G18 -> 0
A15: ='Hood Inlet'!D19 -> 1084.8 | B15: ='Hood Inlet'!F19 -> 6.334721641 | C15: ='Hood Inlet'!G19 -> 0
A16: ='Hood Inlet'!D20 -> 1084.9 | B16: ='Hood Inlet'!F20 -> 7.249452841 | C16: ='Hood Inlet'!G20 -> 0
A17: ='Hood Inlet'!D21 -> 1085 | B17: ='Hood Inlet'!F21 -> 8.192335887 | C17: ='Hood Inlet'!G21 -> 0
A18: ='Hood Inlet'!D22 -> 1085.1 | B18: ='Hood Inlet'!F22 -> 9.149882664 | C18: ='Hood Inlet'!G22 -> 0
A19: ='Hood Inlet'!D23 -> 1085.2 | B19: ='Hood Inlet'!F23 -> 10.10459586 | C19: ='Hood Inlet'!G23 -> 0
A20: ='Hood Inlet'!D24 -> 1085.3 | B20: ='Hood Inlet'!F24 -> 11.03238442 | C20: ='Hood Inlet'!G24 -> 0
A21: ='Hood Inlet'!D25 -> 1085.4 | B21: ='Hood Inlet'!F25 -> 11.89579136 | C21: ='Hood Inlet'!G25 -> 0
A22: ='Hood Inlet'!D26 -> 1085.5 | B22: ='Hood Inlet'!F26 -> 12.60702124 | C22: ='Hood Inlet'!G26 -> 0
A23: ='Hood Inlet'!D27 -> 1085.6 | B23: ='Hood Inlet'!F27 -> 13.09224912 | C23: ='Hood Inlet'!G27 -> 0
A24: ='Hood Inlet'!D28 -> 1085.7 | B24: ='Hood Inlet'!F28 -> 13.57833296 | C24: ='Hood Inlet'!G28 -> 0
A25: ='Hood Inlet'!D29 -> 1085.8 | B25: ='Hood Inlet'!F29 -> 14.06549115 | C25: ='Hood Inlet'!G29 -> 0
A26: ='Hood Inlet'!D30 -> 1085.9 | B26: ='Hood Inlet'!F30 -> 14.55391264 | C26: ='Hood Inlet'!G30 -> 0
A27: ='Hood Inlet'!D31 -> 1086 | B27: ='Hood Inlet'!F31 -> 15.04376155 | C27: ='Hood Inlet'!G31 -> 0
A28: ='Hood Inlet'!D32 -> 1086.1 | B28: ='Hood Inlet'!F32 -> 15.53518092 | C28: ='Hood Inlet'!G32 -> 0
A29: ='Hood Inlet'!D33 -> 1086.2 | B29: ='Hood Inlet'!F33 -> 16.02829584 | C29: ='Hood Inlet'!G33 -> 0
A30: ='Hood Inlet'!D34 -> 1086.3 | B30: ='Hood Inlet'!F34 -> 16.52321595 | C30: ='Hood Inlet'!G34 -> 0
A31: ='Hood Inlet'!D35 -> 1086.4 | B31: ='Hood Inlet'!F35 -> 17.0200376 | C31: ='Hood Inlet'!G35 -> 0
A32: ='Hood Inlet'!D36 -> 1086.5 | B32: ='Hood Inlet'!F36 -> 17.51884558 | C32: ='Hood Inlet'!G36 -> 0
A33: ='Hood Inlet'!D37 -> 1086.6 | B33: ='Hood Inlet'!F37 -> 18.0197147 | C33: ='Hood Inlet'!G37 -> 0
A34: ='Hood Inlet'!D38 -> 1086.7 | B34: ='Hood Inlet'!F38 -> 18.52271097 | C34: ='Hood Inlet'!G38 -> 9.050966799
A35: ='Hood Inlet'!D39 -> 1086.8 | B35: ='Hood Inlet'!F39 -> 19.02789273 | C35: ='Hood Inlet'!G39 -> 20.3646753
A36: ='Hood Inlet'!D40 -> 1086.9 | B36: ='Hood Inlet'!F40 -> 19.53531158 | C36: ='Hood Inlet'!G40 -> 31.6783838
A37: ='Hood Inlet'!D41 -> 1087 | B37: ='Hood Inlet'!F41 -> 20.04501314 | C37: ='Hood Inlet'!G41 -> 42.9920923
A38: ='Hood Inlet'!D42 -> 1087 | B38: ='Hood Inlet'!F42 -> 20.04501314 | C38: ='Hood Inlet'!G42 -> 42.9920923
A39: ='Hood Inlet'!D43 -> 1087.2 | B39: ='Hood Inlet'!F43 ->  | C39: ='Hood Inlet'!G43 -> 
A40: ='Hood Inlet'!D44 -> 1087.4 | B40: ='Hood Inlet'!F44 ->  | C40: ='Hood Inlet'!G44 -> 
A41: ='Hood Inlet'!D45 -> 1087.6 | B41: ='Hood Inlet'!F45 ->  | C41: ='Hood Inlet'!G45 -> 
A42: ='Hood Inlet'!D46 -> 1087.8 | B42: ='Hood Inlet'!F46 ->  | C42: ='Hood Inlet'!G46 -> 
A43: ='Hood Inlet'!D47 -> 1088 | B43: ='Hood Inlet'!F47 ->  | C43: ='Hood Inlet'!G47 -> 
A44: ='Hood Inlet'!D48 -> 1088.2 | B44: ='Hood Inlet'!F48 ->  | C44: ='Hood Inlet'!G48 -> 
A45: ='Hood Inlet'!D49 -> 1088.4 | B45: ='Hood Inlet'!F49 ->  | C45: ='Hood Inlet'!G49 -> 
A46: ='Hood Inlet'!D50 -> 1088.6 | B46: ='Hood Inlet'!F50 ->  | C46: ='Hood Inlet'!G50 -> 
A47: ='Hood Inlet'!D51 -> 1088.8 | B47: ='Hood Inlet'!F51 ->  | C47: ='Hood Inlet'!G51 -> 
A48: ='Hood Inlet'!D52 -> 1089 | B48: ='Hood Inlet'!F52 ->  | C48: ='Hood Inlet'!G52 -> 
A49: ='Hood Inlet'!D53 -> 1089.2 | B49: ='Hood Inlet'!F53 ->  | C49: ='Hood Inlet'!G53 -> 
A50: ='Hood Inlet'!D54 -> 1089.4 | B50: ='Hood Inlet'!F54 ->  | C50: ='Hood Inlet'!G54 -> 
A51: ='Hood Inlet'!D55 -> 1089.6 | B51: ='Hood Inlet'!F55 ->  | C51: ='Hood Inlet'!G55 -> 
A52: ='Hood Inlet'!D56 -> 1089.8 | B52: ='Hood Inlet'!F56 ->  | C52: ='Hood Inlet'!G56 -> 
A53: ='Hood Inlet'!D57 -> 1090 | B53: ='Hood Inlet'!F57 ->  | C53: ='Hood Inlet'!G57 -> 
A54: ='Hood Inlet'!D58 -> 1090.2 | B54: ='Hood Inlet'!F58 ->  | C54: ='Hood Inlet'!G58 -> 
A55: ='Hood Inlet'!D59 -> 1090.4 | B55: ='Hood Inlet'!F59 ->  | C55: ='Hood Inlet'!G59 -> 
A56: ='Hood Inlet'!D60 -> 1090.6 | B56: ='Hood Inlet'!F60 ->  | C56: ='Hood Inlet'!G60 -> 
A57: ='Hood Inlet'!D61 -> 1090.8 | B57: ='Hood Inlet'!F61 ->  | C57: ='Hood Inlet'!G61 -> 
A58: ='Hood Inlet'!D62 -> 1091 | B58: ='Hood Inlet'!F62 ->  | C58: ='Hood Inlet'!G62 -> 
A59: ='Hood Inlet'!D63 ->  | B59: ='Hood Inlet'!F63 ->  | C59: ='Hood Inlet'!G63 -> 
A60: ='Hood Inlet'!D64 ->  | B60: ='Hood Inlet'!F64 ->  | C60: ='Hood Inlet'!G64 -> 
A61: ='Hood Inlet'!D65 ->  | B61: ='Hood Inlet'!F65 ->  | C61: ='Hood Inlet'!G65 -> 
A62: ='Hood Inlet'!D66 ->  | B62: ='Hood Inlet'!F66 ->  | C62: ='Hood Inlet'!G66 -> 
A63: ='Hood Inlet'!D67 ->  | B63: ='Hood Inlet'!F67 ->  | C63: ='Hood Inlet'!G67 -> 
A64: ='Hood Inlet'!D68 ->  | B64: ='Hood Inlet'!F68 ->  | C64: ='Hood Inlet'!G68 -> 
A65: ='Hood Inlet'!D69 ->  | B65: ='Hood Inlet'!F69 ->  | C65: ='Hood Inlet'!G69 -> 
A66: ='Hood Inlet'!D70 ->  | B66: ='Hood Inlet'!F70 ->  | C66: ='Hood Inlet'!G70 -> 
A67: ='Hood Inlet'!D71 ->  | B67: ='Hood Inlet'!F71 ->  | C67: ='Hood Inlet'!G71 -> 
A68: ='Hood Inlet'!D72 ->  | B68: ='Hood Inlet'!F72 ->  | C68: ='Hood Inlet'!G72 -> 
A69: ='Hood Inlet'!D73 ->  | B69: ='Hood Inlet'!F73 ->  | C69: ='Hood Inlet'!G73 -> 
A70: ='Hood Inlet'!D74 ->  | B70: ='Hood Inlet'!F74 ->  | C70: ='Hood Inlet'!G74 -> 
A71: ='Hood Inlet'!D75 ->  | B71: ='Hood Inlet'!F75 ->  | C71: ='Hood Inlet'!G75 -> 
A72: ='Hood Inlet'!D76 ->  | B72: ='Hood Inlet'!F76 ->  | C72: ='Hood Inlet'!G76 -> 
A73: ='Hood Inlet'!D77 ->  | B73: ='Hood Inlet'!F77 ->  | C73: ='Hood Inlet'!G77 -> 
A74: ='Hood Inlet'!D78 ->  | B74: ='Hood Inlet'!F78 ->  | C74: ='Hood Inlet'!G78 -> 
A75: ='Hood Inlet'!D79 ->  | B75: ='Hood Inlet'!F79 ->  | C75: ='Hood Inlet'!G79 -> 
A76: ='Hood Inlet'!D80 ->  | B76: ='Hood Inlet'!F80 ->  | C76: ='Hood Inlet'!G80 -> 
A77: ='Hood Inlet'!D81 ->  | B77: ='Hood Inlet'!F81 ->  | C77: ='Hood Inlet'!G81 -> 
A78: ='Hood Inlet'!D82 ->  | B78: ='Hood Inlet'!F82 ->  | C78: ='Hood Inlet'!G82 -> 
A79: ='Hood Inlet'!D83 ->  | B79: ='Hood Inlet'!F83 ->  | C79: ='Hood Inlet'!G83 -> 
A80: ='Hood Inlet'!D84 ->  | B80: ='Hood Inlet'!F84 ->  | C80: ='Hood Inlet'!G84 -> 
A81: ='Hood Inlet'!D85 ->  | B81: ='Hood Inlet'!F85 ->  | C81: ='Hood Inlet'!G85 -> 
A82: ='Hood Inlet'!D86 ->  | B82: ='Hood Inlet'!F86 ->  | C82: ='Hood Inlet'!G86 -> 
A83: ='Hood Inlet'!D87 ->  | B83: ='Hood Inlet'!F87 ->  | C83: ='Hood Inlet'!G87 -> 
A84: ='Hood Inlet'!D88 ->  | B84: ='Hood Inlet'!F88 ->  | C84: ='Hood Inlet'!G88 -> 
A85: ='Hood Inlet'!D89 ->  | B85: ='Hood Inlet'!F89 ->  | C85: ='Hood Inlet'!G89 -> 
A86: ='Hood Inlet'!D90 ->  | B86: ='Hood Inlet'!F90 ->  | C86: ='Hood Inlet'!G90 -> 
A87: ='Hood Inlet'!D91 ->  | B87: ='Hood Inlet'!F91 ->  | C87: ='Hood Inlet'!G91 -> 
A88: ='Hood Inlet'!D92 ->  | B88: ='Hood Inlet'!F92 ->  | C88: ='Hood Inlet'!G92 -> 
A89: ='Hood Inlet'!D93 ->  | B89: ='Hood Inlet'!F93 ->  | C89: ='Hood Inlet'!G93 -> 
A90: ='Hood Inlet'!D94 ->  | B90: ='Hood Inlet'!F94 ->  | C90: ='Hood Inlet'!G94 -> 
A91: ='Hood Inlet'!D95 ->  | B91: ='Hood Inlet'!F95 ->  | C91: ='Hood Inlet'!G95 -> 
A92: ='Hood Inlet'!D96 ->  | B92: ='Hood Inlet'!F96 ->  | C92: ='Hood Inlet'!G96 -> 
A93: ='Hood Inlet'!D97 ->  | B93: ='Hood Inlet'!F97 ->  | C93: ='Hood Inlet'!G97 -> 
A94: ='Hood Inlet'!D98 ->  | B94: ='Hood Inlet'!F98 ->  | C94: ='Hood Inlet'!G98 -> 
A95: ='Hood Inlet'!D99 ->  | B95: ='Hood Inlet'!F99 ->  | C95: ='Hood Inlet'!G99 -> 
A96: ='Hood Inlet'!D100 ->  | B96: ='Hood Inlet'!F100 ->  | C96: ='Hood Inlet'!G100 -> 
A97: ='Hood Inlet'!D101 ->  | B97: ='Hood Inlet'!F101 ->  | C97: ='Hood Inlet'!G101 -> 
A98: ='Hood Inlet'!D102 ->  | B98: ='Hood Inlet'!F102 ->  | C98: ='Hood Inlet'!G102 -> 
A99: ='Hood Inlet'!D103 ->  | B99: ='Hood Inlet'!F103 ->  | C99: ='Hood Inlet'!G103 -> 
A100: ='Hood Inlet'!D104 ->  | B100: ='Hood Inlet'!F104 ->  | C100: ='Hood Inlet'!G104 -> 
A101: ='Hood Inlet'!D105 ->  | B101: ='Hood Inlet'!F105 ->  | C101: ='Hood Inlet'!G105 -> 
A102: ='Hood Inlet'!D106 ->  | B102: ='Hood Inlet'!F106 ->  | C102: ='Hood Inlet'!G106 -> 
A103: ='Hood Inlet'!D107 ->  | B103: ='Hood Inlet'!F107 ->  | C103: ='Hood Inlet'!G107 -> 
A104: ='Hood Inlet'!D108 ->  | B104: ='Hood Inlet'!F108 ->  | C104: ='Hood Inlet'!G108 -> 
A105: ='Hood Inlet'!D109 ->  | B105: ='Hood Inlet'!F109 ->  | C105: ='Hood Inlet'!G109 -> 
A106: ='Hood Inlet'!D110 ->  | B106: ='Hood Inlet'!F110 ->  | C106: ='Hood Inlet'!G110 -> 
A107: ='Hood Inlet'!D111 ->  | B107: ='Hood Inlet'!F111 ->  | C107: ='Hood Inlet'!G111 -> 
A108: ='Hood Inlet'!D112 ->  | B108: ='Hood Inlet'!F112 ->  | C108: ='Hood Inlet'!G112 -> 
A109: ='Hood Inlet'!D113 ->  | B109: ='Hood Inlet'!F113 ->  | C109: ='Hood Inlet'!G113 -> 
A110: ='Hood Inlet'!D114 ->  | B110: ='Hood Inlet'!F114 ->  | C110: ='Hood Inlet'!G114 -> 
A111: ='Hood Inlet'!D115 ->  | B111: ='Hood Inlet'!F115 ->  | C111: ='Hood Inlet'!G115 -> 
A112: ='Hood Inlet'!D116 ->  | B112: ='Hood Inlet'!F116 ->  | C112: ='Hood Inlet'!G116 -> 
A113: ='Hood Inlet'!D117 ->  | B113: ='Hood Inlet'!F117 ->  | C113: ='Hood Inlet'!G117 -> 
A114: ='Hood Inlet'!D118 ->  | B114: ='Hood Inlet'!F118 ->  | C114: ='Hood Inlet'!G118 -> 
A115: ='Hood Inlet'!D119 ->  | B115: ='Hood Inlet'!F119 ->  | C115: ='Hood Inlet'!G119 -> 
A116: ='Hood Inlet'!D120 ->  | B116: ='Hood Inlet'!F120 ->  | C116: ='Hood Inlet'!G120 -> 
A117: ='Hood Inlet'!D121 ->  | B117: ='Hood Inlet'!F121 ->  | C117: ='Hood Inlet'!G121 -> 
A118: ='Hood Inlet'!D122 ->  | B118: ='Hood Inlet'!F122 ->  | C118: ='Hood Inlet'!G122 -> 
A119: ='Hood Inlet'!D123 ->  | B119: ='Hood Inlet'!F123 ->  | C119: ='Hood Inlet'!G123 -> 
A120: ='Hood Inlet'!D124 ->  | B120: ='Hood Inlet'!F124 ->  | C120: ='Hood Inlet'!G124 -> 
A121: ='Hood Inlet'!D125 ->  | B121: ='Hood Inlet'!F125 ->  | C121: ='Hood Inlet'!G125 -> 
A122: ='Hood Inlet'!D126 ->  | B122: ='Hood Inlet'!F126 ->  | C122: ='Hood Inlet'!G126 -> 
A123: ='Hood Inlet'!D127 ->  | B123: ='Hood Inlet'!F127 ->  | C123: ='Hood Inlet'!G127 -> 
A124: ='Hood Inlet'!D128 ->  | B124: ='Hood Inlet'!F128 ->  | C124: ='Hood Inlet'!G128 -> 
A125: ='Hood Inlet'!D129 ->  | B125: ='Hood Inlet'!F129 ->  | C125: ='Hood Inlet'!G129 -> 
A126: ='Hood Inlet'!D130 ->  | B126: ='Hood Inlet'!F130 ->  | C126: ='Hood Inlet'!G130 -> 
A127: ='Hood Inlet'!D131 ->  | B127: ='Hood Inlet'!F131 ->  | C127: ='Hood Inlet'!G131 -> 
A128: ='Hood Inlet'!D132 ->  | B128: ='Hood Inlet'!F132 ->  | C128: ='Hood Inlet'!G132 -> 
A129: ='Hood Inlet'!D133 ->  | B129: ='Hood Inlet'!F133 ->  | C129: ='Hood Inlet'!G133 -> 
A130: ='Hood Inlet'!D134 ->  | B130: ='Hood Inlet'!F134 ->  | C130: ='Hood Inlet'!G134 -> 
A131: ='Hood Inlet'!D135 ->  | B131: ='Hood Inlet'!F135 ->  | C131: ='Hood Inlet'!G135 -> 
A132: ='Hood Inlet'!D136 ->  | B132: ='Hood Inlet'!F136 ->  | C132: ='Hood Inlet'!G136 -> 
A133: ='Hood Inlet'!D137 ->  | B133: ='Hood Inlet'!F137 ->  | C133: ='Hood Inlet'!G137 -> 
A134: ='Hood Inlet'!D138 ->  | B134: ='Hood Inlet'!F138 ->  | C134: ='Hood Inlet'!G138 -> 
A135: ='Hood Inlet'!D139 ->  | B135: ='Hood Inlet'!F139 ->  | C135: ='Hood Inlet'!G139 -> 
A136: ='Hood Inlet'!D140 ->  | B136: ='Hood Inlet'!F140 ->  | C136: ='Hood Inlet'!G140 -> 
A137: ='Hood Inlet'!D141 ->  | B137: ='Hood Inlet'!F141 ->  | C137: ='Hood Inlet'!G141 -> 
A138: ='Hood Inlet'!D142 ->  | B138: ='Hood Inlet'!F142 ->  | C138: ='Hood Inlet'!G142 -> 
A139: ='Hood Inlet'!D143 ->  | B139: ='Hood Inlet'!F143 ->  | C139: ='Hood Inlet'!G143 -> 
A140: ='Hood Inlet'!D144 ->  | B140: ='Hood Inlet'!F144 ->  | C140: ='Hood Inlet'!G144 -> 
A141: ='Hood Inlet'!D145 ->  | B141: ='Hood Inlet'!F145 ->  | C141: ='Hood Inlet'!G145 -> 
A142: ='Hood Inlet'!D146 ->  | B142: ='Hood Inlet'!F146 ->  | C142: ='Hood Inlet'!G146 -> 
A143: ='Hood Inlet'!D147 ->  | B143: ='Hood Inlet'!F147 ->  | C143: ='Hood Inlet'!G147 -> 
A144: ='Hood Inlet'!D148 ->  | B144: ='Hood Inlet'!F148 ->  | C144: ='Hood Inlet'!G148 -> 
A145: ='Hood Inlet'!D149 ->  | B145: ='Hood Inlet'!F149 ->  | C145: ='Hood Inlet'!G149 -> 
A146: ='Hood Inlet'!D150 ->  | B146: ='Hood Inlet'!F150 ->  | C146: ='Hood Inlet'!G150 -> 
A147: ='Hood Inlet'!D151 ->  | B147: ='Hood Inlet'!F151 ->  | C147: ='Hood Inlet'!G151 -> 
A148: ='Hood Inlet'!D152 ->  | B148: ='Hood Inlet'!F152 ->  | C148: ='Hood Inlet'!G152 -> 
A149: ='Hood Inlet'!D153 ->  | B149: ='Hood Inlet'!F153 ->  | C149: ='Hood Inlet'!G153 -> 
A150: ='Hood Inlet'!D154 ->  | B150: ='Hood Inlet'!F154 ->  | C150: ='Hood Inlet'!G154 -> 
A151: ='Hood Inlet'!D155 ->  | B151: ='Hood Inlet'!F155 ->  | C151: ='Hood Inlet'!G155 -> 
A152: ='Hood Inlet'!D156 ->  | B152: ='Hood Inlet'!F156 ->  | C152: ='Hood Inlet'!G156 -> 
A153: ='Hood Inlet'!D157 ->  | B153: ='Hood Inlet'!F157 ->  | C153: ='Hood Inlet'!G157 -> 
A154: ='Hood Inlet'!D158 ->  | B154: ='Hood Inlet'!F158 ->  | C154: ='Hood Inlet'!G158 -> 
A155: ='Hood Inlet'!D159 ->  | B155: ='Hood Inlet'!F159 ->  | C155: ='Hood Inlet'!G159 -> 
A156: ='Hood Inlet'!D160 ->  | B156: ='Hood Inlet'!F160 ->  | C156: ='Hood Inlet'!G160 -> 
A157: ='Hood Inlet'!D161 ->  | B157: ='Hood Inlet'!F161 ->  | C157: ='Hood Inlet'!G161 -> 
A158: ='Hood Inlet'!D162 ->  | B158: ='Hood Inlet'!F162 ->  | C158: ='Hood Inlet'!G162 -> 
A159: ='Hood Inlet'!D163 ->  | B159: ='Hood Inlet'!F163 ->  | C159: ='Hood Inlet'!G163 -> 
A160: ='Hood Inlet'!D164 ->  | B160: ='Hood Inlet'!F164 ->  | C160: ='Hood Inlet'!G164 -> 
A161: ='Hood Inlet'!D165 ->  | B161: ='Hood Inlet'!F165 ->  | C161: ='Hood Inlet'!G165 -> 
A162: ='Hood Inlet'!D166 ->  | B162: ='Hood Inlet'!F166 ->  | C162: ='Hood Inlet'!G166 -> 
A163: ='Hood Inlet'!D167 ->  | B163: ='Hood Inlet'!F167 ->  | C163: ='Hood Inlet'!G167 -> 
A164: ='Hood Inlet'!D168 ->  | B164: ='Hood Inlet'!F168 ->  | C164: ='Hood Inlet'!G168 -> 
A165: ='Hood Inlet'!D169 ->  | B165: ='Hood Inlet'!F169 ->  | C165: ='Hood Inlet'!G169 -> 
A166: ='Hood Inlet'!D170 ->  | B166: ='Hood Inlet'!F170 ->  | C166: ='Hood Inlet'!G170 -> 
A167: ='Hood Inlet'!D171 ->  | B167: ='Hood Inlet'!F171 ->  | C167: ='Hood Inlet'!G171 -> 
A168: ='Hood Inlet'!D172 ->  | B168: ='Hood Inlet'!F172 ->  | C168: ='Hood Inlet'!G172 -> 
A169: ='Hood Inlet'!D173 ->  | B169: ='Hood Inlet'!F173 ->  | C169: ='Hood Inlet'!G173 -> 
A170: ='Hood Inlet'!D174 ->  | B170: ='Hood Inlet'!F174 ->  | C170: ='Hood Inlet'!G174 -> 
A171: ='Hood Inlet'!D175 ->  | B171: ='Hood Inlet'!F175 ->  | C171: ='Hood Inlet'!G175 -> 
A172: ='Hood Inlet'!D176 ->  | B172: ='Hood Inlet'!F176 ->  | C172: ='Hood Inlet'!G176 -> 
A173: ='Hood Inlet'!D177 ->  | B173: ='Hood Inlet'!F177 ->  | C173: ='Hood Inlet'!G177 -> 
A174: ='Hood Inlet'!D178 ->  | B174: ='Hood Inlet'!F178 ->  | C174: ='Hood Inlet'!G178 -> 
A175: ='Hood Inlet'!D179 ->  | B175: ='Hood Inlet'!F179 ->  | C175: ='Hood Inlet'!G179 -> 
A176: ='Hood Inlet'!D180 ->  | B176: ='Hood Inlet'!F180 ->  | C176: ='Hood Inlet'!G180 -> 
A177: ='Hood Inlet'!D181 ->  | B177: ='Hood Inlet'!F181 ->  | C177: ='Hood Inlet'!G181 -> 
A178: ='Hood Inlet'!D182 ->  | B178: ='Hood Inlet'!F182 ->  | C178: ='Hood Inlet'!G182 -> 
A179: ='Hood Inlet'!D183 ->  | B179: ='Hood Inlet'!F183 ->  | C179: ='Hood Inlet'!G183 -> 
A180: ='Hood Inlet'!D184 ->  | B180: ='Hood Inlet'!F184 ->  | C180: ='Hood Inlet'!G184 -> 
A181: ='Hood Inlet'!D185 ->  | B181: ='Hood Inlet'!F185 ->  | C181: ='Hood Inlet'!G185 -> 
A182: ='Hood Inlet'!D186 ->  | B182: ='Hood Inlet'!F186 ->  | C182: ='Hood Inlet'!G186 -> 
A183: ='Hood Inlet'!D187 ->  | B183: ='Hood Inlet'!F187 ->  | C183: ='Hood Inlet'!G187 -> 
A184: ='Hood Inlet'!D188 ->  | B184: ='Hood Inlet'!F188 ->  | C184: ='Hood Inlet'!G188 -> 
A185: ='Hood Inlet'!D189 ->  | B185: ='Hood Inlet'!F189 ->  | C185: ='Hood Inlet'!G189 -> 
A186: ='Hood Inlet'!D190 ->  | B186: ='Hood Inlet'!F190 ->  | C186: ='Hood Inlet'!G190 -> 
A187: ='Hood Inlet'!D191 ->  | B187: ='Hood Inlet'!F191 ->  | C187: ='Hood Inlet'!G191 -> 
A188: ='Hood Inlet'!D192 ->  | B188: ='Hood Inlet'!F192 ->  | C188: ='Hood Inlet'!G192 -> 
A189: ='Hood Inlet'!D193 ->  | B189: ='Hood Inlet'!F193 ->  | C189: ='Hood Inlet'!G193 -> 
A190: ='Hood Inlet'!D194 ->  | B190: ='Hood Inlet'!F194 ->  | C190: ='Hood Inlet'!G194 -> 
A191: ='Hood Inlet'!D195 ->  | B191: ='Hood Inlet'!F195 ->  | C191: ='Hood Inlet'!G195 -> 
A192: ='Hood Inlet'!D196 ->  | B192: ='Hood Inlet'!F196 ->  | C192: ='Hood Inlet'!G196 -> 
A193: ='Hood Inlet'!D197 ->  | B193: ='Hood Inlet'!F197 ->  | C193: ='Hood Inlet'!G197 -> 
A194: ='Hood Inlet'!D198 ->  | B194: ='Hood Inlet'!F198 ->  | C194: ='Hood Inlet'!G198 -> 
A195: ='Hood Inlet'!D199 ->  | B195: ='Hood Inlet'!F199 ->  | C195: ='Hood Inlet'!G199 -> 
A196: ='Hood Inlet'!D200 ->  | B196: ='Hood Inlet'!F200 ->  | C196: ='Hood Inlet'!G200 -> 
A197: ='Hood Inlet'!D201 ->  | B197: ='Hood Inlet'!F201 ->  | C197: ='Hood Inlet'!G201 -> 
A198: ='Hood Inlet'!D202 ->  | B198: ='Hood Inlet'!F202 ->  | C198: ='Hood Inlet'!G202 -> 
A199: ='Hood Inlet'!D203 ->  | B199: ='Hood Inlet'!F203 ->  | C199: ='Hood Inlet'!G203 -> 
A200: ='Hood Inlet'!D204 ->  | B200: ='Hood Inlet'!F204 ->  | C200: ='Hood Inlet'!G204 -> 
... 1 more rows

Sheet Pipe Length
G1: ='Hood Inlet'!K1 -> IaHoodInlet.xls Ver 1.30
B2: Calculate the Pipe Length
A4: Project Name: | B4: =IF('Hood Inlet'!B1="","",'Hood Inlet'!B1) -> 
A5: Computed by: | B5: =IF('Hood Inlet'!B2:C2="","",'Hood Inlet'!B2:C2) -> 
A6: Date: | B6: =IF('Hood Inlet'!B3="","",'Hood Inlet'!B3) -> 
A7: Checked by:
A8: Date:
A9: Basic Pipe Elevations
A10: Principal Spillway Crest Elev (ft) | C10: 1083.5
A12: Elbow Elev (if None, Leave 'BLANK') | C12: 1065.5
A13: Length of Outlet ('BLANK' if none) | C13: 20
A14: Outlet Elevation (ft) | C14: 1064.5
A16: Basic Embankment Elevations
A17: Constructed Top of Fill Elev (ft) | C17: 1091
A18: Embankment Top Width | C18: 12
A19: Frontslope (H/V) | C19: 3
A20: Backslope (H/V) | C20: 3
A21: Downstream Toe Elev (ft) | C21: 1063.5
A22: Length of Pipe Past Downstream Toe (ft) | C22: 6
F23: =IF(OR(IF(OR(elb="",lenout=""),FALSE,elb<outelev),tof<pscrest,outelev<toe),"Check your inputs","OK") -> OK
A24: Calculated Pipe Flow Length
A25: Pipe Length (ft) | C25: =IF(F23="OK",IF(OR(elb="",lenout=""),ROUND(((pscrest-outelev)^2+(overh+tw+(tof-pscrest)*fs+(tof-toe)*bs)^2)^0.5,0),ROUND(((pscrest-elb)^2+(overh+tw+(tof-pscrest)*fs+(tof-toe)*bs-lenout)^2)^0.5+lenout,0)),"") -> 125
A29: Pipe Profile
A30: Station of CL of Dam | C30: 1000
A32: Pipe Profile for CADD | C32: Sta | D32: Elev
A33: Inlet | C33: =CL_dam-tw/2-(tof-pscrest)*fs -> 971.5 | D33: =pscrest -> 1083.5
A34: Elbow | C34: =IF(elb="","",C35-lenout) -> 1074.5 | D34: =IF(elb="","",elb) -> 1065.5
A35: Outlet | C35: =CL_dam+tw/2+(tof-toe)*bs+overh -> 1094.5 | D35: =outelev -> 1064.5

Sheet Weir & Slug
B1: Project Name: | C1: =IF('Hood Inlet'!B1="","",'Hood Inlet'!B1) ->  | M1: ='Hood Inlet'!K1 -> IaHoodInlet.xls Ver 1.30
B2: Computed by: | C2: =IF('Hood Inlet'!B2="","",'Hood Inlet'!B2) -> 
B3: Date: | C3: =IF('Hood Inlet'!B3="","",'Hood Inlet'!B3) -> 
B5: Computations for Weir Flow | E5: Weir Flow | F5: Slug Flow
A6: H | B6: a, wetted area, sq ft | E6: Q, cfs | F6: Q, cfs
A7: =IF('Hood Inlet'!E6>1.81*Pipe_Diam/12,"",VALUE('Hood Inlet'!E6)) -> 0 | B7: =IF(A7="","",IF(A7<=Pipe_Diam_Ft,Pipe_Diam_Ft^2/4*ACOS((Pipe_Diam_Ft-2*A7)/Pipe_Diam_Ft)-(Pipe_Diam_Ft/2-A7)*SQRT((Pipe_Diam_Ft/2)^2-(Pipe_Diam_Ft/2-A7)^2),IF(A7<=Pipe_Diam_Ft,0,Barea))) -> 0 | E7: =IF(A7="","",(Pipe_Diam_Ft^2.5)*(1.83*PipeSlope^(1/15)+0.6*A7/Pipe_Diam_Ft)*(B7/Barea)*(A7/Pipe_Diam_Ft)^0.5) -> 0 | F7: =IF(A7="","",IF(A7<slugstart,0,IF(A7/(Pipe_Diam/12)-Cs<0,0,((A7/(Pipe_Diam/12)-Cs)*(Pipe_Diam/12)^2.5)/0.025))) -> 0
A8: =IF('Hood Inlet'!E7>1.81*Pipe_Diam/12,"",VALUE('Hood Inlet'!E7)) -> 0.1 | B8: 0.05872590688 | E8: 0.03921829657 | F8: 0
A9: =IF('Hood Inlet'!E8>1.81*Pipe_Diam/12,"",VALUE('Hood Inlet'!E8)) -> 0.2 | B9: 0.1635011088 | E9: 0.1572098271 | F9: 0 | L9: Pipe Diameter, Ft = | M9: =Pipe_Diam/12 -> 2
A10: =IF('Hood Inlet'!E9>1.81*Pipe_Diam/12,"",VALUE('Hood Inlet'!E9)) -> 0.3 | B10: 0.2954988402 | E10: 0.3541671664 | F10: 0 | L10: Cs = | M10: =IF(Mannings>0.02,1.56,IF(Mannings<=0.01,1.05,1.05+51*(Mannings-0.01))) -> 1.56
A11: =IF('Hood Inlet'!E10>1.81*Pipe_Diam/12,"",VALUE('Hood Inlet'!E10)) -> 0.4 | B11: 0.447295218 | E11: 0.6298421005 | F11: 0
A12: =IF('Hood Inlet'!E11>1.81*Pipe_Diam/12,"",VALUE('Hood Inlet'!E11)) -> 0.5 | B12: 0.6141848493 | E12: 0.9835110319 | F12: 0
A13: =IF('Hood Inlet'!E12>1.81*Pipe_Diam/12,"",VALUE('Hood Inlet'!E12)) -> 0.6 | B13: 0.7926734251 | E13: 1.413934154 | F13: 0
A14: =IF('Hood Inlet'!E13>1.81*Pipe_Diam/12,"",VALUE('Hood Inlet'!E13)) -> 0.7 | B14: 0.9799219124 | E14: 1.919306667 | F14: 0
A15: =IF('Hood Inlet'!E14>1.81*Pipe_Diam/12,"",VALUE('Hood Inlet'!E14)) -> 0.8 | B15: 1.173479227 | E15: 2.497199656 | F15: 0
A16: =IF('Hood Inlet'!E15>1.81*Pipe_Diam/12,"",VALUE('Hood Inlet'!E15)) -> 0.9 | B16: 1.371130162 | E16: 3.144487242 | F16: 0
A17: =IF('Hood Inlet'!E16>1.81*Pipe_Diam/12,"",VALUE('Hood Inlet'!E16)) -> 1 | B17: 1.570796327 | E17: 3.857255106 | F17: 0
A18: =IF('Hood Inlet'!E17>1.81*Pipe_Diam/12,"",VALUE('Hood Inlet'!E17)) -> 1.1 | B18: 1.770462492 | E18: 4.630682995 | F18: 0
A19: =IF('Hood Inlet'!E18>1.81*Pipe_Diam/12,"",VALUE('Hood Inlet'!E18)) -> 1.2 | B19: 1.968113427 | E19: 5.458889689 | F19: 0
A20: =IF('Hood Inlet'!E19>1.81*Pipe_Diam/12,"",VALUE('Hood Inlet'!E19)) -> 1.3 | B20: 2.161670741 | E20: 6.334721641 | F20: 0
A21: =IF('Hood Inlet'!E20>1.81*Pipe_Diam/12,"",VALUE('Hood Inlet'!E20)) -> 1.4 | B21: 2.348919228 | E21: 7.249452841 | F21: 0
A22: =IF('Hood Inlet'!E21>1.81*Pipe_Diam/12,"",VALUE('Hood Inlet'!E21)) -> 1.5 | B22: 2.527407804 | E22: 8.192335887 | F22: 0
A23: =IF('Hood Inlet'!E22>1.81*Pipe_Diam/12,"",VALUE('Hood Inlet'!E22)) -> 1.6 | B23: 2.694297436 | E23: 9.149882664 | F23: 0
A24: =IF('Hood Inlet'!E23>1.81*Pipe_Diam/12,"",VALUE('Hood Inlet'!E23)) -> 1.7 | B24: 2.846093813 | E24: 10.10459586 | F24: 0
A25: =IF('Hood Inlet'!E24>1.81*Pipe_Diam/12,"",VALUE('Hood Inlet'!E24)) -> 1.8 | B25: 2.978091545 | E25: 11.03238442 | F25: 0
A26: =IF('Hood Inlet'!E25>1.81*Pipe_Diam/12,"",VALUE('Hood Inlet'!E25)) -> 1.9 | B26: 3.082866747 | E26: 11.89579136 | F26: 0
A27: =IF('Hood Inlet'!E26>1.81*Pipe_Diam/12,"",VALUE('Hood Inlet'!E26)) -> 2 | B27: 3.141592654 | E27: 12.60702124 | F27: 0
A28: =IF('Hood Inlet'!E27>1.81*Pipe_Diam/12,"",VALUE('Hood Inlet'!E27)) -> 2.1 | B28: 3.141592654 | E28: 13.09224912 | F28: 0
A29: =IF('Hood Inlet'!E28>1.81*Pipe_Diam/12,"",VALUE('Hood Inlet'!E28)) -> 2.2 | B29: 3.141592654 | E29: 13.57833296 | F29: 0
A30: =IF('Hood Inlet'!E29>1.81*Pipe_Diam/12,"",VALUE('Hood Inlet'!E29)) -> 2.3 | B30: 3.141592654 | E30: 14.06549115 | F30: 0
A31: =IF('Hood Inlet'!E30>1.81*Pipe_Diam/12,"",VALUE('Hood Inlet'!E30)) -> 2.4 | B31: 3.141592654 | E31: 14.55391264 | F31: 0
A32: =IF('Hood Inlet'!E31>1.81*Pipe_Diam/12,"",VALUE('Hood Inlet'!E31)) -> 2.5 | B32: 3.141592654 | E32: 15.04376155 | F32: 0
A33: =IF('Hood Inlet'!E32>1.81*Pipe_Diam/12,"",VALUE('Hood Inlet'!E32)) -> 2.6 | B33: 3.141592654 | E33: 15.53518092 | F33: 0
A34: =IF('Hood Inlet'!E33>1.81*Pipe_Diam/12,"",VALUE('Hood Inlet'!E33)) -> 2.7 | B34: 3.141592654 | E34: 16.02829584 | F34: 0
A35: =IF('Hood Inlet'!E34>1.81*Pipe_Diam/12,"",VALUE('Hood Inlet'!E34)) -> 2.8 | B35: 3.141592654 | E35: 16.52321595 | F35: 0
A36: =IF('Hood Inlet'!E35>1.81*Pipe_Diam/12,"",VALUE('Hood Inlet'!E35)) -> 2.9 | B36: 3.141592654 | E36: 17.0200376 | F36: 0
A37: =IF('Hood Inlet'!E36>1.81*Pipe_Diam/12,"",VALUE('Hood Inlet'!E36)) -> 3 | B37: 3.141592654 | E37: 17.51884558 | F37: 0
A38: =IF('Hood Inlet'!E37>1.81*Pipe_Diam/12,"",VALUE('Hood Inlet'!E37)) -> 3.1 | B38: 3.141592654 | E38: 18.0197147 | F38: 0
A39: =IF('Hood Inlet'!E38>1.81*Pipe_Diam/12,"",VALUE('Hood Inlet'!E38)) -> 3.2 | B39: =IF(A39="","",IF(A39<=Pipe_Diam_Ft,Pipe_Diam_Ft^2/4*ACOS((Pipe_Diam_Ft-2*A39)/Pipe_Diam_Ft)-(Pipe_Diam_Ft/2-A39)*SQRT((Pipe_Diam_Ft/2)^2-(Pipe_Diam_Ft/2-A39)^2),IF(A39<=Pipe_Diam_Ft,0,Barea))) -> 3.141592654 | E39: =IF(A39="","",(Pipe_Diam_Ft^2.5)*(1.83*PipeSlope^(1/15)+0.6*A39/Pipe_Diam_Ft)*(B39/Barea)*(A39/Pipe_Diam_Ft)^0.5) -> 18.52271097 | F39: =IF(A39="","",IF(A39<slugstart,0,IF(A39/(Pipe_Diam/12)-Cs<0,0,((A39/(Pipe_Diam/12)-Cs)*(Pipe_Diam/12)^2.5)/0.025))) -> 9.050966799
A40: =IF('Hood Inlet'!E39>1.81*Pipe_Diam/12,"",VALUE('Hood Inlet'!E39)) -> 3.3 | B40: 3.141592654 | E40: 19.02789273 | F40: 20.3646753
A41: =IF('Hood Inlet'!E40>1.81*Pipe_Diam/12,"",VALUE('Hood Inlet'!E40)) -> 3.4 | B41: 3.141592654 | E41: 19.53531158 | F41: 31.6783838
A42: =IF('Hood Inlet'!E41>1.81*Pipe_Diam/12,"",VALUE('Hood Inlet'!E41)) -> 3.5 | B42: 3.141592654 | E42: 20.04501314 | F42: 42.9920923
A43: =IF('Hood Inlet'!E42>1.81*Pipe_Diam/12,"",VALUE('Hood Inlet'!E42)) -> 3.5 | B43: 3.141592654 | E43: 20.04501314 | F43: 42.9920923
A44: =IF('Hood Inlet'!E43>1.81*Pipe_Diam/12,"",VALUE('Hood Inlet'!E43)) -> 
A45: =IF('Hood Inlet'!E44>1.81*Pipe_Diam/12,"",VALUE('Hood Inlet'!E44)) -> 
A46: =IF('Hood Inlet'!E45>1.81*Pipe_Diam/12,"",VALUE('Hood Inlet'!E45)) -> 
A47: =IF('Hood Inlet'!E46>1.81*Pipe_Diam/12,"",VALUE('Hood Inlet'!E46)) -> 
A48: =IF('Hood Inlet'!E47>1.81*Pipe_Diam/12,"",VALUE('Hood Inlet'!E47)) -> 
A49: =IF('Hood Inlet'!E48>1.81*Pipe_Diam/12,"",VALUE('Hood Inlet'!E48)) -> 
A50: =IF('Hood Inlet'!E49>1.81*Pipe_Diam/12,"",VALUE('Hood Inlet'!E49)) -> 
A51: =IF('Hood Inlet'!E50>1.81*Pipe_Diam/12,"",VALUE('Hood Inlet'!E50)) -> 
A52: =IF('Hood Inlet'!E51>1.81*Pipe_Diam/12,"",VALUE('Hood Inlet'!E51)) -> 
A53: =IF('Hood Inlet'!E52>1.81*Pipe_Diam/12,"",VALUE('Hood Inlet'!E52)) -> 
A54: =IF('Hood Inlet'!E53>1.81*Pipe_Diam/12,"",VALUE('Hood Inlet'!E53)) -> 
A55: =IF('Hood Inlet'!E54>1.81*Pipe_Diam/12,"",VALUE('Hood Inlet'!E54)) -> 
A56: =IF('Hood Inlet'!E55>1.81*Pipe_Diam/12,"",VALUE('Hood Inlet'!E55)) -> 
A57: =IF('Hood Inlet'!E56>1.81*Pipe_Diam/12,"",VALUE('Hood Inlet'!E56)) -> 
A58: =IF('Hood Inlet'!E57>1.81*Pipe_Diam/12,"",VALUE('Hood Inlet'!E57)) -> 
A59: =IF('Hood Inlet'!E58>1.81*Pipe_Diam/12,"",VALUE('Hood Inlet'!E58)) -> 
A60: =IF('Hood Inlet'!E59>1.81*Pipe_Diam/12,"",VALUE('Hood Inlet'!E59)) -> 
A61: =IF('Hood Inlet'!E60>1.81*Pipe_Diam/12,"",VALUE('Hood Inlet'!E60)) -> 
A62: =IF('Hood Inlet'!E61>1.81*Pipe_Diam/12,"",VALUE('Hood Inlet'!E61)) -> 
A63: =IF('Hood Inlet'!E62>1.81*Pipe_Diam/12,"",VALUE('Hood Inlet'!E62)) -> 
A64: =IF('Hood Inlet'!E63>1.81*Pipe_Diam/12,"",VALUE('Hood Inlet'!E63)) -> 
A65: =IF('Hood Inlet'!E64>1.81*Pipe_Diam/12,"",VALUE('Hood Inlet'!E64)) -> 
A66: =IF('Hood Inlet'!E65>1.81*Pipe_Diam/12,"",VALUE('Hood Inlet'!E65)) -> 
A67: =IF('Hood Inlet'!E66>1.81*Pipe_Diam/12,"",VALUE('Hood Inlet'!E66)) -> 
A68: =IF('Hood Inlet'!E67>1.81*Pipe_Diam/12,"",VALUE('Hood Inlet'!E67)) -> 
A69: =IF('Hood Inlet'!E68>1.81*Pipe_Diam/12,"",VALUE('Hood Inlet'!E68)) -> 
A70: =IF('Hood Inlet'!E69>1.81*Pipe_Diam/12,"",VALUE('Hood Inlet'!E69)) -> 
A71: =IF('Hood Inlet'!E70>1.81*Pipe_Diam/12,"",VALUE('Hood Inlet'!E70)) ->  | B71: =IF(A71="","",IF(A71<=Pipe_Diam_Ft,Pipe_Diam_Ft^2/4*ACOS((Pipe_Diam_Ft-2*A71)/Pipe_Diam_Ft)-(Pipe_Diam_Ft/2-A71)*SQRT((Pipe_Diam_Ft/2)^2-(Pipe_Diam_Ft/2-A71)^2),IF(A71<=Pipe_Diam_Ft,0,Barea))) ->  | E71: =IF(A71="","",(Pipe_Diam_Ft^2.5)*(1.83*PipeSlope^(1/15)+0.6*A71/Pipe_Diam_Ft)*(B71/Barea)*(A71/Pipe_Diam_Ft)^0.5) ->  | F71: =IF(A71="","",IF(A71<slugstart,0,IF(A71/(Pipe_Diam/12)-Cs<0,0,((A71/(Pipe_Diam/12)-Cs)*(Pipe_Diam/12)^2.5)/0.025))) -> 
A72: =IF('Hood Inlet'!E71>1.81*Pipe_Diam/12,"",VALUE('Hood Inlet'!E71)) -> 
A73: =IF('Hood Inlet'!E72>1.81*Pipe_Diam/12,"",VALUE('Hood Inlet'!E72)) -> 
A74: =IF('Hood Inlet'!E73>1.81*Pipe_Diam/12,"",VALUE('Hood Inlet'!E73)) -> 
A75: =IF('Hood Inlet'!E74>1.81*Pipe_Diam/12,"",VALUE('Hood Inlet'!E74)) -> 
A76: =IF('Hood Inlet'!E75>1.81*Pipe_Diam/12,"",VALUE('Hood Inlet'!E75)) -> 
A77: =IF('Hood Inlet'!E76>1.81*Pipe_Diam/12,"",VALUE('Hood Inlet'!E76)) -> 
A78: =IF('Hood Inlet'!E77>1.81*Pipe_Diam/12,"",VALUE('Hood Inlet'!E77)) -> 
A79: =IF('Hood Inlet'!E78>1.81*Pipe_Diam/12,"",VALUE('Hood Inlet'!E78)) -> 
A80: =IF('Hood Inlet'!E79>1.81*Pipe_Diam/12,"",VALUE('Hood Inlet'!E79)) -> 
A81: =IF('Hood Inlet'!E80>1.81*Pipe_Diam/12,"",VALUE('Hood Inlet'!E80)) -> 
A82: =IF('Hood Inlet'!E81>1.81*Pipe_Diam/12,"",VALUE('Hood Inlet'!E81)) -> 
A83: =IF('Hood Inlet'!E82>1.81*Pipe_Diam/12,"",VALUE('Hood Inlet'!E82)) -> 
A84: =IF('Hood Inlet'!E83>1.81*Pipe_Diam/12,"",VALUE('Hood Inlet'!E83)) -> 
A85: =IF('Hood Inlet'!E84>1.81*Pipe_Diam/12,"",VALUE('Hood Inlet'!E84)) -> 
A86: =IF('Hood Inlet'!E85>1.81*Pipe_Diam/12,"",VALUE('Hood Inlet'!E85)) -> 
A87: =IF('Hood Inlet'!E86>1.81*Pipe_Diam/12,"",VALUE('Hood Inlet'!E86)) -> 
A88: =IF('Hood Inlet'!E87>1.81*Pipe_Diam/12,"",VALUE('Hood Inlet'!E87)) -> 
A89: =IF('Hood Inlet'!E88>1.81*Pipe_Diam/12,"",VALUE('Hood Inlet'!E88)) -> 
A90: =IF('Hood Inlet'!E89>1.81*Pipe_Diam/12,"",VALUE('Hood Inlet'!E89)) -> 
A91: =IF('Hood Inlet'!E90>1.81*Pipe_Diam/12,"",VALUE('Hood Inlet'!E90)) -> 
A92: =IF('Hood Inlet'!E91>1.81*Pipe_Diam/12,"",VALUE('Hood Inlet'!E91)) -> 
A93: =IF('Hood Inlet'!E92>1.81*Pipe_Diam/12,"",VALUE('Hood Inlet'!E92)) -> 
A94: =IF('Hood Inlet'!E93>1.81*Pipe_Diam/12,"",VALUE('Hood Inlet'!E93)) -> 
A95: =IF('Hood Inlet'!E94>1.81*Pipe_Diam/12,"",VALUE('Hood Inlet'!E94)) -> 
A96: =IF('Hood Inlet'!E95>1.81*Pipe_Diam/12,"",VALUE('Hood Inlet'!E95)) -> 
A97: =IF('Hood Inlet'!E96>1.81*Pipe_Diam/12,"",VALUE('Hood Inlet'!E96)) -> 
A98: =IF('Hood Inlet'!E97>1.81*Pipe_Diam/12,"",VALUE('Hood Inlet'!E97)) -> 
A99: =IF('Hood Inlet'!E98>1.81*Pipe_Diam/12,"",VALUE('Hood Inlet'!E98)) -> 
A100: =IF('Hood Inlet'!E99>1.81*Pipe_Diam/12,"",VALUE('Hood Inlet'!E99)) -> 
A101: =IF('Hood Inlet'!E100>1.81*Pipe_Diam/12,"",VALUE('Hood Inlet'!E100)) -> 
A102: =IF('Hood Inlet'!E101>1.81*Pipe_Diam/12,"",VALUE('Hood Inlet'!E101)) -> 
A103: =IF('Hood Inlet'!E102>1.81*Pipe_Diam/12,"",VALUE('Hood Inlet'!E102)) ->  | B103: =IF(A103="","",IF(A103<=Pipe_Diam_Ft,Pipe_Diam_Ft^2/4*ACOS((Pipe_Diam_Ft-2*A103)/Pipe_Diam_Ft)-(Pipe_Diam_Ft/2-A103)*SQRT((Pipe_Diam_Ft/2)^2-(Pipe_Diam_Ft/2-A103)^2),IF(A103<=Pipe_Diam_Ft,0,Barea))) ->  | E103: =IF(A103="","",(Pipe_Diam_Ft^2.5)*(1.83*PipeSlope^(1/15)+0.6*A103/Pipe_Diam_Ft)*(B103/Barea)*(A103/Pipe_Diam_Ft)^0.5) ->  | F103: =IF(A103="","",IF(A103<slugstart,0,IF(A103/(Pipe_Diam/12)-Cs<0,0,((A103/(Pipe_Diam/12)-Cs)*(Pipe_Diam/12)^2.5)/0.025))) -> 
A104: =IF('Hood Inlet'!E103>1.81*Pipe_Diam/12,"",VALUE('Hood Inlet'!E103)) -> 
A105: =IF('Hood Inlet'!E104>1.81*Pipe_Diam/12,"",VALUE('Hood Inlet'!E104)) -> 
A106: =IF('Hood Inlet'!E105>1.81*Pipe_Diam/12,"",VALUE('Hood Inlet'!E105)) -> 
A107: =IF('Hood Inlet'!E106>1.81*Pipe_Diam/12,"",VALUE('Hood Inlet'!E106)) -> 
A108: =IF('Hood Inlet'!E107>1.81*Pipe_Diam/12,"",VALUE('Hood Inlet'!E107)) -> 
A109: =IF('Hood Inlet'!E108>1.81*Pipe_Diam/12,"",VALUE('Hood Inlet'!E108)) -> 
A110: =IF('Hood Inlet'!E109>1.81*Pipe_Diam/12,"",VALUE('Hood Inlet'!E109)) -> 
A111: =IF('Hood Inlet'!E110>1.81*Pipe_Diam/12,"",VALUE('Hood Inlet'!E110)) -> 
A112: =IF('Hood Inlet'!E111>1.81*Pipe_Diam/12,"",VALUE('Hood Inlet'!E111)) -> 
A113: =IF('Hood Inlet'!E112>1.81*Pipe_Diam/12,"",VALUE('Hood Inlet'!E112)) -> 
A114: =IF('Hood Inlet'!E113>1.81*Pipe_Diam/12,"",VALUE('Hood Inlet'!E113)) -> 
A115: =IF('Hood Inlet'!E114>1.81*Pipe_Diam/12,"",VALUE('Hood Inlet'!E114)) -> 
A116: =IF('Hood Inlet'!E115>1.81*Pipe_Diam/12,"",VALUE('Hood Inlet'!E115)) -> 
A117: =IF('Hood Inlet'!E116>1.81*Pipe_Diam/12,"",VALUE('Hood Inlet'!E116)) -> 
A118: =IF('Hood Inlet'!E117>1.81*Pipe_Diam/12,"",VALUE('Hood Inlet'!E117)) -> 
A119: =IF('Hood Inlet'!E118>1.81*Pipe_Diam/12,"",VALUE('Hood Inlet'!E118)) -> 
A120: =IF('Hood Inlet'!E119>1.81*Pipe_Diam/12,"",VALUE('Hood Inlet'!E119)) -> 
A121: =IF('Hood Inlet'!E120>1.81*Pipe_Diam/12,"",VALUE('Hood Inlet'!E120)) -> 
A122: =IF('Hood Inlet'!E121>1.81*Pipe_Diam/12,"",VALUE('Hood Inlet'!E121)) -> 
A123: =IF('Hood Inlet'!E122>1.81*Pipe_Diam/12,"",VALUE('Hood Inlet'!E122)) -> 
A124: =IF('Hood Inlet'!E123>1.81*Pipe_Diam/12,"",VALUE('Hood Inlet'!E123)) -> 
A125: =IF('Hood Inlet'!E124>1.81*Pipe_Diam/12,"",VALUE('Hood Inlet'!E124)) -> 
A126: =IF('Hood Inlet'!E125>1.81*Pipe_Diam/12,"",VALUE('Hood Inlet'!E125)) -> 
A127: =IF('Hood Inlet'!E126>1.81*Pipe_Diam/12,"",VALUE('Hood Inlet'!E126)) -> 
A128: =IF('Hood Inlet'!E127>1.81*Pipe_Diam/12,"",VALUE('Hood Inlet'!E127)) -> 
A129: =IF('Hood Inlet'!E128>1.81*Pipe_Diam/12,"",VALUE('Hood Inlet'!E128)) -> 
A130: =IF('Hood Inlet'!E129>1.81*Pipe_Diam/12,"",VALUE('Hood Inlet'!E129)) -> 
A131: =IF('Hood Inlet'!E130>1.81*Pipe_Diam/12,"",VALUE('Hood Inlet'!E130)) -> 
A132: =IF('Hood Inlet'!E131>1.81*Pipe_Diam/12,"",VALUE('Hood Inlet'!E131)) -> 
A133: =IF('Hood Inlet'!E132>1.81*Pipe_Diam/12,"",VALUE('Hood Inlet'!E132)) -> 
A134: =IF('Hood Inlet'!E133>1.81*Pipe_Diam/12,"",VALUE('Hood Inlet'!E133)) -> 
A135: =IF('Hood Inlet'!E134>1.81*Pipe_Diam/12,"",VALUE('Hood Inlet'!E134)) ->  | B135: =IF(A135="","",IF(A135<=Pipe_Diam_Ft,Pipe_Diam_Ft^2/4*ACOS((Pipe_Diam_Ft-2*A135)/Pipe_Diam_Ft)-(Pipe_Diam_Ft/2-A135)*SQRT((Pipe_Diam_Ft/2)^2-(Pipe_Diam_Ft/2-A135)^2),IF(A135<=Pipe_Diam_Ft,0,Barea))) ->  | E135: =IF(A135="","",(Pipe_Diam_Ft^2.5)*(1.83*PipeSlope^(1/15)+0.6*A135/Pipe_Diam_Ft)*(B135/Barea)*(A135/Pipe_Diam_Ft)^0.5) ->  | F135: =IF(A135="","",IF(A135<slugstart,0,IF(A135/(Pipe_Diam/12)-Cs<0,0,((A135/(Pipe_Diam/12)-Cs)*(Pipe_Diam/12)^2.5)/0.025))) -> 
A136: =IF('Hood Inlet'!E135>1.81*Pipe_Diam/12,"",VALUE('Hood Inlet'!E135)) -> 
A137: =IF('Hood Inlet'!E136>1.81*Pipe_Diam/12,"",VALUE('Hood Inlet'!E136)) -> 
A138: =IF('Hood Inlet'!E137>1.81*Pipe_Diam/12,"",VALUE('Hood Inlet'!E137)) -> 
A139: =IF('Hood Inlet'!E138>1.81*Pipe_Diam/12,"",VALUE('Hood Inlet'!E138)) -> 
A140: =IF('Hood Inlet'!E139>1.81*Pipe_Diam/12,"",VALUE('Hood Inlet'!E139)) -> 
A141: =IF('Hood Inlet'!E140>1.81*Pipe_Diam/12,"",VALUE('Hood Inlet'!E140)) -> 
A142: =IF('Hood Inlet'!E141>1.81*Pipe_Diam/12,"",VALUE('Hood Inlet'!E141)) -> 
A143: =IF('Hood Inlet'!E142>1.81*Pipe_Diam/12,"",VALUE('Hood Inlet'!E142)) -> 
A144: =IF('Hood Inlet'!E143>1.81*Pipe_Diam/12,"",VALUE('Hood Inlet'!E143)) -> 
A145: =IF('Hood Inlet'!E144>1.81*Pipe_Diam/12,"",VALUE('Hood Inlet'!E144)) -> 
A146: =IF('Hood Inlet'!E145>1.81*Pipe_Diam/12,"",VALUE('Hood Inlet'!E145)) -> 
A147: =IF('Hood Inlet'!E146>1.81*Pipe_Diam/12,"",VALUE('Hood Inlet'!E146)) -> 
A148: =IF('Hood Inlet'!E147>1.81*Pipe_Diam/12,"",VALUE('Hood Inlet'!E147)) -> 
A149: =IF('Hood Inlet'!E148>1.81*Pipe_Diam/12,"",VALUE('Hood Inlet'!E148)) -> 
A150: =IF('Hood Inlet'!E149>1.81*Pipe_Diam/12,"",VALUE('Hood Inlet'!E149)) -> 
A151: =IF('Hood Inlet'!E150>1.81*Pipe_Diam/12,"",VALUE('Hood Inlet'!E150)) -> 
A152: =IF('Hood Inlet'!E151>1.81*Pipe_Diam/12,"",VALUE('Hood Inlet'!E151)) -> 
A153: =IF('Hood Inlet'!E152>1.81*Pipe_Diam/12,"",VALUE('Hood Inlet'!E152)) -> 
A154: =IF('Hood Inlet'!E153>1.81*Pipe_Diam/12,"",VALUE('Hood Inlet'!E153)) -> 
A155: =IF('Hood Inlet'!E154>1.81*Pipe_Diam/12,"",VALUE('Hood Inlet'!E154)) -> 
A156: =IF('Hood Inlet'!E155>1.81*Pipe_Diam/12,"",VALUE('Hood Inlet'!E155)) -> 
A157: =IF('Hood Inlet'!E156>1.81*Pipe_Diam/12,"",VALUE('Hood Inlet'!E156)) -> 
A158: =IF('Hood Inlet'!E157>1.81*Pipe_Diam/12,"",VALUE('Hood Inlet'!E157)) -> 
A159: =IF('Hood Inlet'!E158>1.81*Pipe_Diam/12,"",VALUE('Hood Inlet'!E158)) -> 
A160: =IF('Hood Inlet'!E159>1.81*Pipe_Diam/12,"",VALUE('Hood Inlet'!E159)) -> 
A161: =IF('Hood Inlet'!E160>1.81*Pipe_Diam/12,"",VALUE('Hood Inlet'!E160)) -> 
A162: =IF('Hood Inlet'!E161>1.81*Pipe_Diam/12,"",VALUE('Hood Inlet'!E161)) -> 
A163: =IF('Hood Inlet'!E162>1.81*Pipe_Diam/12,"",VALUE('Hood Inlet'!E162)) -> 
A164: =IF('Hood Inlet'!E163>1.81*Pipe_Diam/12,"",VALUE('Hood Inlet'!E163)) -> 
A165: =IF('Hood Inlet'!E164>1.81*Pipe_Diam/12,"",VALUE('Hood Inlet'!E164)) -> 
A166: =IF('Hood Inlet'!E165>1.81*Pipe_Diam/12,"",VALUE('Hood Inlet'!E165)) -> 
A167: =IF('Hood Inlet'!E166>1.81*Pipe_Diam/12,"",VALUE('Hood Inlet'!E166)) ->  | B167: =IF(A167="","",IF(A167<=Pipe_Diam_Ft,Pipe_Diam_Ft^2/4*ACOS((Pipe_Diam_Ft-2*A167)/Pipe_Diam_Ft)-(Pipe_Diam_Ft/2-A167)*SQRT((Pipe_Diam_Ft/2)^2-(Pipe_Diam_Ft/2-A167)^2),IF(A167<=Pipe_Diam_Ft,0,Barea))) ->  | E167: =IF(A167="","",(Pipe_Diam_Ft^2.5)*(1.83*PipeSlope^(1/15)+0.6*A167/Pipe_Diam_Ft)*(B167/Barea)*(A167/Pipe_Diam_Ft)^0.5) ->  | F167: =IF(A167="","",IF(A167<slugstart,0,IF(A167/(Pipe_Diam/12)-Cs<0,0,((A167/(Pipe_Diam/12)-Cs)*(Pipe_Diam/12)^2.5)/0.025))) -> 
A168: =IF('Hood Inlet'!E167>1.81*Pipe_Diam/12,"",VALUE('Hood Inlet'!E167)) -> 
A169: =IF('Hood Inlet'!E168>1.81*Pipe_Diam/12,"",VALUE('Hood Inlet'!E168)) -> 
A170: =IF('Hood Inlet'!E169>1.81*Pipe_Diam/12,"",VALUE('Hood Inlet'!E169)) -> 
A171: =IF('Hood Inlet'!E170>1.81*Pipe_Diam/12,"",VALUE('Hood Inlet'!E170)) -> 
A172: =IF('Hood Inlet'!E171>1.81*Pipe_Diam/12,"",VALUE('Hood Inlet'!E171)) -> 
A173: =IF('Hood Inlet'!E172>1.81*Pipe_Diam/12,"",VALUE('Hood Inlet'!E172)) -> 
A174: =IF('Hood Inlet'!E173>1.81*Pipe_Diam/12,"",VALUE('Hood Inlet'!E173)) -> 
A175: =IF('Hood Inlet'!E174>1.81*Pipe_Diam/12,"",VALUE('Hood Inlet'!E174)) -> 
A176: =IF('Hood Inlet'!E175>1.81*Pipe_Diam/12,"",VALUE('Hood Inlet'!E175)) -> 
A177: =IF('Hood Inlet'!E176>1.81*Pipe_Diam/12,"",VALUE('Hood Inlet'!E176)) -> 
A178: =IF('Hood Inlet'!E177>1.81*Pipe_Diam/12,"",VALUE('Hood Inlet'!E177)) -> 
A179: =IF('Hood Inlet'!E178>1.81*Pipe_Diam/12,"",VALUE('Hood Inlet'!E178)) -> 
A180: =IF('Hood Inlet'!E179>1.81*Pipe_Diam/12,"",VALUE('Hood Inlet'!E179)) -> 
A181: =IF('Hood Inlet'!E180>1.81*Pipe_Diam/12,"",VALUE('Hood Inlet'!E180)) -> 
A182: =IF('Hood Inlet'!E181>1.81*Pipe_Diam/12,"",VALUE('Hood Inlet'!E181)) -> 
A183: =IF('Hood Inlet'!E182>1.81*Pipe_Diam/12,"",VALUE('Hood Inlet'!E182)) -> 
A184: =IF('Hood Inlet'!E183>1.81*Pipe_Diam/12,"",VALUE('Hood Inlet'!E183)) -> 
A185: =IF('Hood Inlet'!E184>1.81*Pipe_Diam/12,"",VALUE('Hood Inlet'!E184)) -> 
A186: =IF('Hood Inlet'!E185>1.81*Pipe_Diam/12,"",VALUE('Hood Inlet'!E185)) -> 
A187: =IF('Hood Inlet'!E186>1.81*Pipe_Diam/12,"",VALUE('Hood Inlet'!E186)) -> 
A188: =IF('Hood Inlet'!E187>1.81*Pipe_Diam/12,"",VALUE('Hood Inlet'!E187)) -> 
A189: =IF('Hood Inlet'!E188>1.81*Pipe_Diam/12,"",VALUE('Hood Inlet'!E188)) -> 
A190: =IF('Hood Inlet'!E189>1.81*Pipe_Diam/12,"",VALUE('Hood Inlet'!E189)) -> 
A191: =IF('Hood Inlet'!E190>1.81*Pipe_Diam/12,"",VALUE('Hood Inlet'!E190)) -> 
A192: =IF('Hood Inlet'!E191>1.81*Pipe_Diam/12,"",VALUE('Hood Inlet'!E191)) -> 
A193: =IF('Hood Inlet'!E192>1.81*Pipe_Diam/12,"",VALUE('Hood Inlet'!E192)) -> 
A194: =IF('Hood Inlet'!E193>1.81*Pipe_Diam/12,"",VALUE('Hood Inlet'!E193)) -> 
A195: =IF('Hood Inlet'!E194>1.81*Pipe_Diam/12,"",VALUE('Hood Inlet'!E194)) -> 
A196: =IF('Hood Inlet'!E195>1.81*Pipe_Diam/12,"",VALUE('Hood Inlet'!E195)) -> 
A197: =IF('Hood Inlet'!E196>1.81*Pipe_Diam/12,"",VALUE('Hood Inlet'!E196)) -> 
A198: =IF('Hood Inlet'!E197>1.81*Pipe_Diam/12,"",VALUE('Hood Inlet'!E197)) -> 
A199: =IF('Hood Inlet'!E198>1.81*Pipe_Diam/12,"",VALUE('Hood Inlet'!E198)) ->  | B199: =IF(A199="","",IF(A199<=Pipe_Diam_Ft,Pipe_Diam_Ft^2/4*ACOS((Pipe_Diam_Ft-2*A199)/Pipe_Diam_Ft)-(Pipe_Diam_Ft/2-A199)*SQRT((Pipe_Diam_Ft/2)^2-(Pipe_Diam_Ft/2-A199)^2),IF(A199<=Pipe_Diam_Ft,0,Barea))) ->  | E199: =IF(A199="","",(Pipe_Diam_Ft^2.5)*(1.83*PipeSlope^(1/15)+0.6*A199/Pipe_Diam_Ft)*(B199/Barea)*(A199/Pipe_Diam_Ft)^0.5) ->  | F199: =IF(A199="","",IF(A199<slugstart,0,IF(A199/(Pipe_Diam/12)-Cs<0,0,((A199/(Pipe_Diam/12)-Cs)*(Pipe_Diam/12)^2.5)/0.025))) -> 
A200: =IF('Hood Inlet'!E199>1.81*Pipe_Diam/12,"",VALUE('Hood Inlet'!E199)) -> 
A201: =IF('Hood Inlet'!E200>1.81*Pipe_Diam/12,"",VALUE('Hood Inlet'!E200)) -> 
... 6 more rows

Sheet CFS chart
B1: Project Name: | C1: =IF('Hood Inlet'!B1="","",'Hood Inlet'!B1) ->  | M1: ='Hood Inlet'!K1 -> IaHoodInlet.xls Ver 1.30
B2: Computed by: | C2: =IF('Hood Inlet'!B2="","",'Hood Inlet'!B2) -> 
B3: Date: | C3: =IF('Hood Inlet'!B3="","",'Hood Inlet'!B3) -> 
F34: ='Hood Inlet'!I2 -> 

Sheet Info
A1: ='Hood Inlet'!K1 -> IaHoodInlet.xls Ver 1.30
A2: 2017-12-20
A4: Calculates flow capacity of a pipe structure consisting of a hood inlet and a circular conduit. Limiting flow conditions reviewed are:
B6: Weir flow
B7: Slug Flow
B8: Full pipe flow
A11: Maximum number of elevation intervals displayed is 200.
A13: Program support:
A14: State Conservation Engineer
A15: USDA Natural Resources Conservation Service
A16: 693 Federal Bldg
A17: 210 Walnut St
A18: Des Moines, Iowa 50309
A19: 515.284.4135
A21: Double Click Here
A22: to View the Documentation
A23: Adobe Reader is require to open this.
A26: Updates
A27: Version 1.25
A28: Updates to match computations used in the NRCS Engineering Field Tools software
A29: Slug flow equations match EFT software
A30: Weir flow equations match EFT software
A31: Tailwater is the outlet elevation + 0.5* the pipe diameter.
A33: Version 1.20
A34: On the Pipe Length tab: Computations of station and elevation of the pipe profile for use in CADD were added. The user needs to input the station value of the CL of dam.
A35: On the Hood Inlet tab: Elevations used after full pipe flow occurs are now multiples of the Elevation Increment value rather than increments above the crest elevation.
A37: Version 1.10
A38: For the case when the standard tailwater is higher than the inlet, the limiting valve prior to reaching full pipe flow is now correctly displayed as either Weir flow or Slug flow. Previously a value of 0 was displayed rather than displaying the larger of the Weir or Slug Flow values.
A43: If tailwater is entered in that is higher than the inlet elevation, a VOID message will be displayed since Weir flow & Slug flow values are not able to be calculated correctly.
